{"text_format":"1","workbook":"xlsx","n_sheets":2,"sheets":["ورقة1","ورقة2"],"not_rendered":{"charts":0,"images":6,"macros":1,"external_links":0,"defined_names":4,"comments":0,"pivot_tables":0},"unopened":[],"bounds":{"document_bytes":16777216,"sheet_cells":100000,"rows_first":2000,"rows_last":500,"rows_between":2000,"halvings":0,"cell_chars":16384,"cell_head_chars":4096},"cells_cut":0,"cells_raw":0,"read":"whole","date_system":"1900"}

{"sheet":"ورقة1","index":0,"n_rows":292,"n_cols":255,"rows_kept":292,"cut":false,"hidden":false,"merged":[[0,0,2,0],[0,1,2,1],[0,25,2,25],[0,26,2,26],[0,24,1,24],[0,2,2,2],[0,28,2,30],[0,27,2,27],[0,21,0,23],[0,3,0,5],[0,6,0,8],[0,9,0,11],[0,12,0,14],[0,15,0,17],[0,18,0,20]]}
["مسلسل","اسم الطالب","رقم الجلوس","القران ",null,null,"اسلامية ",null,null,"اللغة العربية ",null,null,"انجليزي",null,null,"رياضيات",null,null,"العلوم ",null,null,"اجتماعيات",null,null,"مجموع الكلي","نسبة مؤية","ترتيب","القدير","تقدير الطالب"]
[null,null,null,"محصلة الاختبارات","الامتحان","المجموع","محصلة الاختبارات","الامتحان","المجموع","محصلة الاختبارات","الامتحان","المجموع","محصلة الاختبارات","الامتحان","المجموع","محصلة الاختبارات","الامتحان","المجموع","محصلة الاختبارات","الامتحان","المجموع","محصلة الاختبارات","الامتحان","المجموع"]
[null,null,null,20,30,50,20,30,50,20,30,50,20,30,50,20,30,50,20,30,50,20,30,50,{"$f":"SUM(F3,I3,L3,O3,R3,U3,X3)","v":350},null,null,null,null,null,null,null,null,null,null,null,null,null,null,null,null,null,null,null,null,null,null,null,null,null,null,null,null,null,null,null,null,null,null,null,null,null,null,null,null,null,null,null,null,null,null,null,null,null,null,null,null,null,null,null,null,null,null,null,null,null,null,null,null,null,null,null,null,null,null,null,null,null,null,null,null,null,null,null,null,null,null,null,null,null,null,null,null,null,null,null,null,null,null,null,null,null,null,null,null,null,null,null,null,null,null,null,null,null,null,null,null,null,null,null,null,null,null,null,null,null,null,null,null,null,null,null,null,null,null,null,null,null,null,null,null,null,null,null,null,null,null,null,null,null,null,null,null,null,null,null,null,null,null,null,null,null,null,null,null,null,null,null,null,null,null,null,null,null,null,null,null,null,null,null,null,null,null,null,null,null,null,null,null,null,null,null,null,null,null,null,null,null,null,null,null,null,null,null,null,null,null,null,null,null,null,null,null,null,null,null,null,null,null,null,null,null,null,null,null,null,null,null,null,null,null,null,null,"غ","غائب"]
[1,"احمد سالم احمد محمد سقاف",1,18,30,48,18,30,48,20,24,44,0,0,0,20,16,36,12,30,42,0,0,0,{"$f":"SUM(F4,I4,L4,O4,R4,U4,X4)","v":218},{"$f":"Y4/$Y$3","v":0.62285714285714289},{"$f":"IF(COUNTIF($Y$3:$Y3,$Y4)=0,OrdeUP100(RANK($Y4,$AG$4:$AG$1000)),OrdeUP100(RANK($Y4,$AG$4:$AG$1000))&\" مكرر\")","v":"التّاسع عشر"},{"$f":"IF(AND(Z4>=0%,Z4<=49%),\"ضعيف\",IF(AND(Z4>=50%,Z4<=59%),\"مقبول\",IF(AND(Z4>=60%,Z4<=79%),\"جيد\",IF(AND(Z4>=80%,Z4<=94%),\"جيد جداً\",IF(AND(Z4>=95%,Z4<=100%),\"ممتاز\",\"\")))))","v":"جيد"},50,59,"مقبول",null,{"$f":"IF(MIN(IF(Notes<>\"\",IF(COUNTIF($AG$3:$AG3,Notes)=0,ROW(Notes))))=0,\"\",INDEX($Y:$Y,MIN(IF(Notes<>\"\",IF(COUNTIF($AG$3:$AG3,Notes)=0,ROW(Notes))))))","v":218},null,null,null,null,null,null,null,null,null,null,null,null,null,null,null,null,null,null,null,null,null,null,null,null,null,null,null,null,null,null,null,null,null,null,null,null,null,null,null,null,null,null,null,null,null,null,null,null,null,null,null,null,null,null,null,null,null,null,null,null,null,null,null,null,null,null,null,null,null,null,null,null,null,null,null,null,null,null,null,null,null,null,null,null,null,null,null,null,null,null,null,null,null,null,null,null,null,null,null,null,null,null,null,null,null,null,null,null,null,null,null,null,null,null,null,null,null,null,null,null,null,null,null,null,null,null,null,null,null,null,null,null,null,null,null,null,null,null,null,null,null,null,null,null,null,null,null,null,null,null,null,null,null,null,null,null,null,null,null,null,null,null,null,null,null,null,null,null,null,null,null,null,null,null,null,null,null,null,null,null,null,null,null,null,null,null,null,null,null,null,null,null,null,null,null,null,null,null,null,null,null,null,null,null,null,null,null,null,null,null,null,null,null,null,null,null,null,null,null,null,0,"ضعيف"]
[2,"احمد سالم عبدالله عبدالسلام",2,18,24,42,18,20,38,6,13,19,0,0,0,12,5,17,16,25,41,0,0,0,{"$f":"SUM(F5,I5,L5,O5,R5,U5,X5)","v":157},{"$f":"Y5/$Y$3","v":0.44857142857142857},{"$f":"IF(COUNTIF($Y$3:$Y4,$Y5)=0,OrdeUP100(RANK($Y5,$AG$4:$AG$1000)),OrdeUP100(RANK($Y5,$AG$4:$AG$1000))&\" مكرر\")","v":"الحادي والثّلاثون"},{"$f":"IF(AND(Z5>=0%,Z5<=49%),\"ضعيف\",IF(AND(Z5>=50%,Z5<=59%),\"مقبول\",IF(AND(Z5>=60%,Z5<=79%),\"جيد\",IF(AND(Z5>=80%,Z5<=94%),\"جيد جداً\",IF(AND(Z5>=95%,Z5<=100%),\"ممتاز\",\"\")))))","v":"ضعيف"},33,37,"جيد",null,{"$f":"IF(MIN(IF(Notes<>\"\",IF(COUNTIF($AG$3:$AG4,Notes)=0,ROW(Notes))))=0,\"\",INDEX($Y:$Y,MIN(IF(Notes<>\"\",IF(COUNTIF($AG$3:$AG4,Notes)=0,ROW(Notes))))))","v":157},null,null,null,null,null,null,null,null,null,null,null,null,null,null,null,null,null,null,null,null,null,null,null,null,null,null,null,null,null,null,null,null,null,null,null,null,null,null,null,null,null,null,null,null,null,null,null,null,null,null,null,null,null,null,null,null,null,null,null,null,null,null,null,null,null,null,null,null,null,null,null,null,null,null,null,null,null,null,null,null,null,null,null,null,null,null,null,null,null,null,null,null,null,null,null,null,null,null,null,null,null,null,null,null,null,null,null,null,null,null,null,null,null,null,null,null,null,null,null,null,null,null,null,null,null,null,null,null,null,null,null,null,null,null,null,null,null,null,null,null,null,null,null,null,null,null,null,null,null,null,null,null,null,null,null,null,null,null,null,null,null,null,null,null,null,null,null,null,null,null,null,null,null,null,null,null,null,null,null,null,null,null,null,null,null,null,null,null,null,null,null,null,null,null,null,null,null,null,null,null,null,null,null,null,null,null,null,null,null,null,null,null,null,null,null,null,null,null,null,null,50,"مقبول"]
[3,"احمد محمد ابوبكر محمد صباح",3,18,30,48,18,30,48,20,30,50,0,0,0,20,30,50,18,30,48,0,0,0,244,0.69714285714285718,{"$f":"IF(COUNTIF($Y$3:$Y5,$Y6)=0,OrdeUP100(RANK($Y6,$AG$4:$AG$1000)),OrdeUP100(RANK($Y6,$AG$4:$AG$1000))&\" مكرر\")","v":"السّادس"},"جيد",38,47,"جيد جداً",null,{"$f":"IF(MIN(IF(Notes<>\"\",IF(COUNTIF($AG$3:$AG5,Notes)=0,ROW(Notes))))=0,\"\",INDEX($Y:$Y,MIN(IF(Notes<>\"\",IF(COUNTIF($AG$3:$AG5,Notes)=0,ROW(Notes))))))","v":244},null,null,null,null,null,null,null,null,null,null,null,null,null,null,null,null,null,null,null,null,null,null,null,null,null,null,null,null,null,null,null,null,null,null,null,null,null,null,null,null,null,null,null,null,null,null,null,null,null,null,null,null,null,null,null,null,null,null,null,null,null,null,null,null,null,null,null,null,null,null,null,null,null,null,null,null,null,null,null,null,null,null,null,null,null,null,null,null,null,null,null,null,null,null,null,null,null,null,null,null,null,null,null,null,null,null,null,null,null,null,null,null,null,null,null,null,null,null,null,null,null,null,null,null,null,null,null,null,null,null,null,null,null,null,null,null,null,null,null,null,null,null,null,null,null,null,null,null,null,null,null,null,null,null,null,null,null,null,null,null,null,null,null,null,null,null,null,null,null,null,null,null,null,null,null,null,null,null,null,null,null,null,null,null,null,null,null,null,null,null,null,null,null,null,null,null,null,null,null,null,null,null,null,null,null,null,null,null,null,null,null,null,null,null,null,null,null,null,null,null,60,"جيد"]
[4,"احمد محمد احمد علي حمران",4,20,30,50,20,30,50,14,22,36,0,0,0,16,13,29,12,15,27,0,0,0,192,0.5485714285714286,{"$f":"IF(COUNTIF($Y$3:$Y6,$Y7)=0,OrdeUP100(RANK($Y7,$AG$4:$AG$1000)),OrdeUP100(RANK($Y7,$AG$4:$AG$1000))&\" مكرر\")","v":"السّابع والعشرون"},"مقبول",48,50,"ممتاز",null,{"$f":"IF(MIN(IF(Notes<>\"\",IF(COUNTIF($AG$3:$AG6,Notes)=0,ROW(Notes))))=0,\"\",INDEX($Y:$Y,MIN(IF(Notes<>\"\",IF(COUNTIF($AG$3:$AG6,Notes)=0,ROW(Notes))))))","v":192},null,null,null,null,null,null,null,null,null,null,null,null,null,null,null,null,null,null,null,null,null,null,null,null,null,null,null,null,null,null,null,null,null,null,null,null,null,null,null,null,null,null,null,null,null,null,null,null,null,null,null,null,null,null,null,null,null,null,null,null,null,null,null,null,null,null,null,null,null,null,null,null,null,null,null,null,null,null,null,null,null,null,null,null,null,null,null,null,null,null,null,null,null,null,null,null,null,null,null,null,null,null,null,null,null,null,null,null,null,null,null,null,null,null,null,null,null,null,null,null,null,null,null,null,null,null,null,null,null,null,null,null,null,null,null,null,null,null,null,null,null,null,null,null,null,null,null,null,null,null,null,null,null,null,null,null,null,null,null,null,null,null,null,null,null,null,null,null,null,null,null,null,null,null,null,null,null,null,null,null,null,null,null,null,null,null,null,null,null,null,null,null,null,null,null,null,null,null,null,null,null,null,null,null,null,null,null,null,null,null,null,null,null,null,null,null,null,null,null,null,80,"جيد جداً"]
[5,"اسامة محسن عبدالله دينيش ",5,20,30,50,20,30,50,16,20,36,0,0,0,16,30,46,14,30,44,0,0,0,226,0.64571428571428569,{"$f":"IF(COUNTIF($Y$3:$Y7,$Y8)=0,OrdeUP100(RANK($Y8,$AG$4:$AG$1000)),OrdeUP100(RANK($Y8,$AG$4:$AG$1000))&\" مكرر\")","v":"الخامس عشر"},"جيد",null,null,null,null,{"$f":"IF(MIN(IF(Notes<>\"\",IF(COUNTIF($AG$3:$AG7,Notes)=0,ROW(Notes))))=0,\"\",INDEX($Y:$Y,MIN(IF(Notes<>\"\",IF(COUNTIF($AG$3:$AG7,Notes)=0,ROW(Notes))))))","v":226},null,null,null,null,null,null,null,null,null,null,null,null,null,null,null,null,null,null,null,null,null,null,null,null,null,null,null,null,null,null,null,null,null,null,null,null,null,null,null,null,null,null,null,null,null,null,null,null,null,null,null,null,null,null,null,null,null,null,null,null,null,null,null,null,null,null,null,null,null,null,null,null,null,null,null,null,null,null,null,null,null,null,null,null,null,null,null,null,null,null,null,null,null,null,null,null,null,null,null,null,null,null,null,null,null,null,null,null,null,null,null,null,null,null,null,null,null,null,null,null,null,null,null,null,null,null,null,null,null,null,null,null,null,null,null,null,null,null,null,null,null,null,null,null,null,null,null,null,null,null,null,null,null,null,null,null,null,null,null,null,null,null,null,null,null,null,null,null,null,null,null,null,null,null,null,null,null,null,null,null,null,null,null,null,null,null,null,null,null,null,null,null,null,null,null,null,null,null,null,null,null,null,null,null,null,null,null,null,null,null,null,null,null,null,null,null,null,null,null,null,95,"ممتاز"]
[6,"انس صالح محمد علي حمران",6,20,29,49,18,28,46,12,18,30,0,0,0,18,30,48,16,30,46,0,0,0,219,0.62571428571428567,{"$f":"IF(COUNTIF($Y$3:$Y8,$Y9)=0,OrdeUP100(RANK($Y9,$AG$4:$AG$1000)),OrdeUP100(RANK($Y9,$AG$4:$AG$1000))&\" مكرر\")","v":"الثّامن عشر"},"جيد",null,null,null,null,{"$f":"IF(MIN(IF(Notes<>\"\",IF(COUNTIF($AG$3:$AG8,Notes)=0,ROW(Notes))))=0,\"\",INDEX($Y:$Y,MIN(IF(Notes<>\"\",IF(COUNTIF($AG$3:$AG8,Notes)=0,ROW(Notes))))))","v":219}]
[7,"اوسان محسن صالح غرامة",7,20,30,50,20,30,50,18,30,48,0,0,0,20,29,49,18,30,48,0,0,0,245,0.7,{"$f":"IF(COUNTIF($Y$3:$Y9,$Y10)=0,OrdeUP100(RANK($Y10,$AG$4:$AG$1000)),OrdeUP100(RANK($Y10,$AG$4:$AG$1000))&\" مكرر\")","v":"الخامس"},"جيد",null,null,null,null,{"$f":"IF(MIN(IF(Notes<>\"\",IF(COUNTIF($AG$3:$AG9,Notes)=0,ROW(Notes))))=0,\"\",INDEX($Y:$Y,MIN(IF(Notes<>\"\",IF(COUNTIF($AG$3:$AG9,Notes)=0,ROW(Notes))))))","v":245}]
[8,"خالد جمال عبدالناصر الاشطل",8,20,30,50,20,30,50,18,28,46,0,0,0,20,26,46,18,30,48,0,0,0,240,0.68571428571428572,{"$f":"IF(COUNTIF($Y$3:$Y10,$Y11)=0,OrdeUP100(RANK($Y11,$AG$4:$AG$1000)),OrdeUP100(RANK($Y11,$AG$4:$AG$1000))&\" مكرر\")","v":"السّابع"},"جيد",null,null,null,null,{"$f":"IF(MIN(IF(Notes<>\"\",IF(COUNTIF($AG$3:$AG10,Notes)=0,ROW(Notes))))=0,\"\",INDEX($Y:$Y,MIN(IF(Notes<>\"\",IF(COUNTIF($AG$3:$AG10,Notes)=0,ROW(Notes))))))","v":240}]
[9,"خالد وليد عوض الخلاقي",9,20,30,50,20,30,50,18,29,47,0,0,0,20,29,49,12,25,37,0,0,0,233,0.6657142857142857,{"$f":"IF(COUNTIF($Y$3:$Y11,$Y12)=0,OrdeUP100(RANK($Y12,$AG$4:$AG$1000)),OrdeUP100(RANK($Y12,$AG$4:$AG$1000))&\" مكرر\")","v":"الثّاني عشر"},"جيد",null,null,null,null,{"$f":"IF(MIN(IF(Notes<>\"\",IF(COUNTIF($AG$3:$AG11,Notes)=0,ROW(Notes))))=0,\"\",INDEX($Y:$Y,MIN(IF(Notes<>\"\",IF(COUNTIF($AG$3:$AG11,Notes)=0,ROW(Notes))))))","v":233}]
[10,"خضر محسن خضر حسيين دينيش",10,20,30,50,20,30,50,20,28,48,0,0,0,20,30,50,16,30,46,0,0,0,244,0.69714285714285718,{"$f":"IF(COUNTIF($Y$3:$Y12,$Y13)=0,OrdeUP100(RANK($Y13,$AG$4:$AG$1000)),OrdeUP100(RANK($Y13,$AG$4:$AG$1000))&\" مكرر\")","v":"السّادس مكرر"},"جيد",null,null,null,null,{"$f":"IF(MIN(IF(Notes<>\"\",IF(COUNTIF($AG$3:$AG12,Notes)=0,ROW(Notes))))=0,\"\",INDEX($Y:$Y,MIN(IF(Notes<>\"\",IF(COUNTIF($AG$3:$AG12,Notes)=0,ROW(Notes))))))","v":231}]
[11,"دينيش صالح محمد علي دينيش",11,20,30,50,20,30,50,18,27,45,0,0,0,18,26,44,14,15,29,0,0,0,218,0.62285714285714289,{"$f":"IF(COUNTIF($Y$3:$Y13,$Y14)=0,OrdeUP100(RANK($Y14,$AG$4:$AG$1000)),OrdeUP100(RANK($Y14,$AG$4:$AG$1000))&\" مكرر\")","v":"التّاسع عشر مكرر"},"جيد",null,null,null,null,{"$f":"IF(MIN(IF(Notes<>\"\",IF(COUNTIF($AG$3:$AG13,Notes)=0,ROW(Notes))))=0,\"\",INDEX($Y:$Y,MIN(IF(Notes<>\"\",IF(COUNTIF($AG$3:$AG13,Notes)=0,ROW(Notes))))))","v":237}]
[12,"زياد انيس يحيى محمد سقاف",12,20,26,46,20,30,50,14,28,42,0,0,0,18,29,47,16,30,46,0,0,0,231,0.66,{"$f":"IF(COUNTIF($Y$3:$Y14,$Y15)=0,OrdeUP100(RANK($Y15,$AG$4:$AG$1000)),OrdeUP100(RANK($Y15,$AG$4:$AG$1000))&\" مكرر\")","v":"الثّالث عشر"},"جيد",null,null,null,null,{"$f":"IF(MIN(IF(Notes<>\"\",IF(COUNTIF($AG$3:$AG14,Notes)=0,ROW(Notes))))=0,\"\",INDEX($Y:$Y,MIN(IF(Notes<>\"\",IF(COUNTIF($AG$3:$AG14,Notes)=0,ROW(Notes))))))","v":198}]
[13,"سند انيس علي محمد عبدالكريم",13,20,28,48,20,30,50,16,25,41,0,0,0,20,30,50,18,30,48,0,0,0,237,0.67714285714285716,{"$f":"IF(COUNTIF($Y$3:$Y15,$Y16)=0,OrdeUP100(RANK($Y16,$AG$4:$AG$1000)),OrdeUP100(RANK($Y16,$AG$4:$AG$1000))&\" مكرر\")","v":"التّاسع"},"جيد",null,null,null,null,{"$f":"IF(MIN(IF(Notes<>\"\",IF(COUNTIF($AG$3:$AG15,Notes)=0,ROW(Notes))))=0,\"\",INDEX($Y:$Y,MIN(IF(Notes<>\"\",IF(COUNTIF($AG$3:$AG15,Notes)=0,ROW(Notes))))))","v":128}]
[14,"صالح خالد محمد صالح عسيل",14,20,30,50,20,20,40,8,18,26,0,0,0,18,30,48,14,20,34,0,0,0,198,0.56571428571428573,{"$f":"IF(COUNTIF($Y$3:$Y16,$Y17)=0,OrdeUP100(RANK($Y17,$AG$4:$AG$1000)),OrdeUP100(RANK($Y17,$AG$4:$AG$1000))&\" مكرر\")","v":"الخامس والعشرون"},"مقبول",null,null,null,null,{"$f":"IF(MIN(IF(Notes<>\"\",IF(COUNTIF($AG$3:$AG16,Notes)=0,ROW(Notes))))=0,\"\",INDEX($Y:$Y,MIN(IF(Notes<>\"\",IF(COUNTIF($AG$3:$AG16,Notes)=0,ROW(Notes))))))","v":229}]
[15,"صالح علي محمد محمد علوي",15,10,15,25,11,14,25,12,14,26,0,0,0,10,15,25,12,15,27,0,0,0,128,0.36571428571428571,{"$f":"IF(COUNTIF($Y$3:$Y17,$Y18)=0,OrdeUP100(RANK($Y18,$AG$4:$AG$1000)),OrdeUP100(RANK($Y18,$AG$4:$AG$1000))&\" مكرر\")","v":"الثّاني والثّلاثون"},"ضعيف",null,null,null,null,{"$f":"IF(MIN(IF(Notes<>\"\",IF(COUNTIF($AG$3:$AG17,Notes)=0,ROW(Notes))))=0,\"\",INDEX($Y:$Y,MIN(IF(Notes<>\"\",IF(COUNTIF($AG$3:$AG17,Notes)=0,ROW(Notes))))))","v":176}]
[16,"عادل جابر علي جابر سعد",16,20,29,49,20,30,50,18,26,44,0,0,0,20,28,48,18,20,38,0,0,0,229,0.65428571428571425,{"$f":"IF(COUNTIF($Y$3:$Y18,$Y19)=0,OrdeUP100(RANK($Y19,$AG$4:$AG$1000)),OrdeUP100(RANK($Y19,$AG$4:$AG$1000))&\" مكرر\")","v":"الرّابع عشر"},"جيد",null,null,null,null,{"$f":"IF(MIN(IF(Notes<>\"\",IF(COUNTIF($AG$3:$AG18,Notes)=0,ROW(Notes))))=0,\"\",INDEX($Y:$Y,MIN(IF(Notes<>\"\",IF(COUNTIF($AG$3:$AG18,Notes)=0,ROW(Notes))))))","v":247}]
[17,"عبداللاه احمد محمد حبان",17,16,15,31,18,27,45,12,17,29,0,0,0,12,16,28,18,25,43,0,0,0,176,0.50285714285714289,{"$f":"IF(COUNTIF($Y$3:$Y19,$Y20)=0,OrdeUP100(RANK($Y20,$AG$4:$AG$1000)),OrdeUP100(RANK($Y20,$AG$4:$AG$1000))&\" مكرر\")","v":"التّاسع والعشرون"},"مقبول",null,null,null,null,{"$f":"IF(MIN(IF(Notes<>\"\",IF(COUNTIF($AG$3:$AG19,Notes)=0,ROW(Notes))))=0,\"\",INDEX($Y:$Y,MIN(IF(Notes<>\"\",IF(COUNTIF($AG$3:$AG19,Notes)=0,ROW(Notes))))))","v":212}]
[18,"عبدالله احمد بن احمد عبدالسلام",18,20,30,50,20,30,50,20,29,49,0,0,0,20,30,50,18,30,48,0,0,0,247,0.70571428571428574,{"$f":"IF(COUNTIF($Y$3:$Y20,$Y21)=0,OrdeUP100(RANK($Y21,$AG$4:$AG$1000)),OrdeUP100(RANK($Y21,$AG$4:$AG$1000))&\" مكرر\")","v":"الرّابع"},"جيد",null,null,null,null,{"$f":"IF(MIN(IF(Notes<>\"\",IF(COUNTIF($AG$3:$AG20,Notes)=0,ROW(Notes))))=0,\"\",INDEX($Y:$Y,MIN(IF(Notes<>\"\",IF(COUNTIF($AG$3:$AG20,Notes)=0,ROW(Notes))))))","v":166}]
[19,"عبدالله علي صالح المشألي",19,20,23,43,20,30,50,12,20,32,0,0,0,20,30,50,12,25,37,0,0,0,212,0.60571428571428576,{"$f":"IF(COUNTIF($Y$3:$Y21,$Y22)=0,OrdeUP100(RANK($Y22,$AG$4:$AG$1000)),OrdeUP100(RANK($Y22,$AG$4:$AG$1000))&\" مكرر\")","v":"الحادي والعشرون"},"جيد",null,null,null,null,{"$f":"IF(MIN(IF(Notes<>\"\",IF(COUNTIF($AG$3:$AG21,Notes)=0,ROW(Notes))))=0,\"\",INDEX($Y:$Y,MIN(IF(Notes<>\"\",IF(COUNTIF($AG$3:$AG21,Notes)=0,ROW(Notes))))))","v":234}]
[20,"عزالدين جمال عزالدين احمد القاضي",20,20,30,50,20,30,50,20,30,50,0,0,0,20,30,50,20,20,40,0,0,0,240,0.68571428571428572,{"$f":"IF(COUNTIF($Y$3:$Y22,$Y23)=0,OrdeUP100(RANK($Y23,$AG$4:$AG$1000)),OrdeUP100(RANK($Y23,$AG$4:$AG$1000))&\" مكرر\")","v":"السّابع مكرر"},"جيد",null,null,null,null,{"$f":"IF(MIN(IF(Notes<>\"\",IF(COUNTIF($AG$3:$AG22,Notes)=0,ROW(Notes))))=0,\"\",INDEX($Y:$Y,MIN(IF(Notes<>\"\",IF(COUNTIF($AG$3:$AG22,Notes)=0,ROW(Notes))))))","v":210}]
[21,"عمر عبدالسلام محمد مرجان",21,18,18,36,18,30,48,10,15,25,0,0,0,14,11,25,12,20,32,0,0,0,166,0.47428571428571431,{"$f":"IF(COUNTIF($Y$3:$Y23,$Y24)=0,OrdeUP100(RANK($Y24,$AG$4:$AG$1000)),OrdeUP100(RANK($Y24,$AG$4:$AG$1000))&\" مكرر\")","v":"الثّلاثون"},"ضعيف",null,null,null,null,{"$f":"IF(MIN(IF(Notes<>\"\",IF(COUNTIF($AG$3:$AG23,Notes)=0,ROW(Notes))))=0,\"\",INDEX($Y:$Y,MIN(IF(Notes<>\"\",IF(COUNTIF($AG$3:$AG23,Notes)=0,ROW(Notes))))))","v":221}]
[22,"محمد احمد حسين محمد العربي",22,20,30,50,20,30,50,18,29,47,0,0,0,20,28,48,14,25,39,0,0,0,234,0.66857142857142859,{"$f":"IF(COUNTIF($Y$3:$Y24,$Y25)=0,OrdeUP100(RANK($Y25,$AG$4:$AG$1000)),OrdeUP100(RANK($Y25,$AG$4:$AG$1000))&\" مكرر\")","v":"الحادي عشر"},"جيد",null,null,null,null,{"$f":"IF(MIN(IF(Notes<>\"\",IF(COUNTIF($AG$3:$AG24,Notes)=0,ROW(Notes))))=0,\"\",INDEX($Y:$Y,MIN(IF(Notes<>\"\",IF(COUNTIF($AG$3:$AG24,Notes)=0,ROW(Notes))))))","v":248}]
[23,"محمد حسين احمد علي السيد",23,16,30,46,16,30,46,16,22,38,0,0,0,18,21,39,16,25,41,0,0,0,210,0.6,{"$f":"IF(COUNTIF($Y$3:$Y25,$Y26)=0,OrdeUP100(RANK($Y26,$AG$4:$AG$1000)),OrdeUP100(RANK($Y26,$AG$4:$AG$1000))&\" مكرر\")","v":"الثّالث والعشرون"},"جيد",null,null,null,null,{"$f":"IF(MIN(IF(Notes<>\"\",IF(COUNTIF($AG$3:$AG25,Notes)=0,ROW(Notes))))=0,\"\",INDEX($Y:$Y,MIN(IF(Notes<>\"\",IF(COUNTIF($AG$3:$AG25,Notes)=0,ROW(Notes))))))","v":250}]
[24,"محمد خالد خضر حسين دينيش",24,20,30,50,20,30,50,18,27,45,0,0,0,14,21,35,16,25,41,0,0,0,221,0.63142857142857145,{"$f":"IF(COUNTIF($Y$3:$Y26,$Y27)=0,OrdeUP100(RANK($Y27,$AG$4:$AG$1000)),OrdeUP100(RANK($Y27,$AG$4:$AG$1000))&\" مكرر\")","v":"السّابع عشر"},"جيد",null,null,null,null,{"$f":"IF(MIN(IF(Notes<>\"\",IF(COUNTIF($AG$3:$AG26,Notes)=0,ROW(Notes))))=0,\"\",INDEX($Y:$Y,MIN(IF(Notes<>\"\",IF(COUNTIF($AG$3:$AG26,Notes)=0,ROW(Notes))))))","v":223}]
[25,"محمد سنان محمد محسن سنان",25,20,30,50,20,30,50,18,30,48,0,0,0,20,28,48,14,30,44,0,0,0,240,0.68571428571428572,{"$f":"IF(COUNTIF($Y$3:$Y27,$Y28)=0,OrdeUP100(RANK($Y28,$AG$4:$AG$1000)),OrdeUP100(RANK($Y28,$AG$4:$AG$1000))&\" مكرر\")","v":"السّابع مكرر"},"جيد",null,null,null,null,{"$f":"IF(MIN(IF(Notes<>\"\",IF(COUNTIF($AG$3:$AG27,Notes)=0,ROW(Notes))))=0,\"\",INDEX($Y:$Y,MIN(IF(Notes<>\"\",IF(COUNTIF($AG$3:$AG27,Notes)=0,ROW(Notes))))))","v":217}]
[26,"محمد صالح علي ثابت شيخ",26,20,30,50,20,30,50,18,30,48,0,0,0,20,30,50,20,30,50,0,0,0,248,0.70857142857142852,{"$f":"IF(COUNTIF($Y$3:$Y28,$Y29)=0,OrdeUP100(RANK($Y29,$AG$4:$AG$1000)),OrdeUP100(RANK($Y29,$AG$4:$AG$1000))&\" مكرر\")","v":"الثّالث"},"جيد",null,null,null,null,{"$f":"IF(MIN(IF(Notes<>\"\",IF(COUNTIF($AG$3:$AG28,Notes)=0,ROW(Notes))))=0,\"\",INDEX($Y:$Y,MIN(IF(Notes<>\"\",IF(COUNTIF($AG$3:$AG28,Notes)=0,ROW(Notes))))))","v":249}]
[27,"محمد صلاح علي البكري",27,20,30,50,20,30,50,20,30,50,0,0,0,20,30,50,20,30,50,0,0,0,250,0.7142857142857143,{"$f":"IF(COUNTIF($Y$3:$Y29,$Y30)=0,OrdeUP100(RANK($Y30,$AG$4:$AG$1000)),OrdeUP100(RANK($Y30,$AG$4:$AG$1000))&\" مكرر\")","v":"الأوّل"},"جيد",null,null,null,null,{"$f":"IF(MIN(IF(Notes<>\"\",IF(COUNTIF($AG$3:$AG29,Notes)=0,ROW(Notes))))=0,\"\",INDEX($Y:$Y,MIN(IF(Notes<>\"\",IF(COUNTIF($AG$3:$AG29,Notes)=0,ROW(Notes))))))","v":202}]
[28,"محمد صلاح محسن سعيد الفقية ",28,20,30,50,20,30,50,18,28,46,0,0,0,18,29,47,10,20,30,0,0,0,223,0.63714285714285712,{"$f":"IF(COUNTIF($Y$3:$Y30,$Y31)=0,OrdeUP100(RANK($Y31,$AG$4:$AG$1000)),OrdeUP100(RANK($Y31,$AG$4:$AG$1000))&\" مكرر\")","v":"السّادس عشر"},"جيد",null,null,null,null,{"$f":"IF(MIN(IF(Notes<>\"\",IF(COUNTIF($AG$3:$AG30,Notes)=0,ROW(Notes))))=0,\"\",INDEX($Y:$Y,MIN(IF(Notes<>\"\",IF(COUNTIF($AG$3:$AG30,Notes)=0,ROW(Notes))))))","v":194}]
[29,"محمد علي صالح الواقعي",29,18,30,48,18,28,46,16,25,41,0,0,0,16,25,41,16,25,41,0,0,0,217,0.62,{"$f":"IF(COUNTIF($Y$3:$Y31,$Y32)=0,OrdeUP100(RANK($Y32,$AG$4:$AG$1000)),OrdeUP100(RANK($Y32,$AG$4:$AG$1000))&\" مكرر\")","v":"العشرون"},"جيد",null,null,null,null,{"$f":"IF(MIN(IF(Notes<>\"\",IF(COUNTIF($AG$3:$AG31,Notes)=0,ROW(Notes))))=0,\"\",INDEX($Y:$Y,MIN(IF(Notes<>\"\",IF(COUNTIF($AG$3:$AG31,Notes)=0,ROW(Notes))))))","v":185}]
[30,"محمد علي صالح علي دينيش",30,20,30,50,20,30,50,16,24,40,0,0,0,18,27,45,12,20,32,0,0,0,217,0.62,{"$f":"IF(COUNTIF($Y$3:$Y32,$Y33)=0,OrdeUP100(RANK($Y33,$AG$4:$AG$1000)),OrdeUP100(RANK($Y33,$AG$4:$AG$1000))&\" مكرر\")","v":"العشرون مكرر"},"جيد",null,null,null,null,{"$f":"IF(MIN(IF(Notes<>\"\",IF(COUNTIF($AG$3:$AG32,Notes)=0,ROW(Notes))))=0,\"\",INDEX($Y:$Y,MIN(IF(Notes<>\"\",IF(COUNTIF($AG$3:$AG32,Notes)=0,ROW(Notes))))))","v":236}]
[31,"محمد ناصر ابوبكر سيف",31,20,29,49,20,30,50,20,30,50,0,0,0,20,30,50,20,30,50,0,0,0,249,0.71142857142857141,{"$f":"IF(COUNTIF($Y$3:$Y33,$Y34)=0,OrdeUP100(RANK($Y34,$AG$4:$AG$1000)),OrdeUP100(RANK($Y34,$AG$4:$AG$1000))&\" مكرر\")","v":"الثّاني"},"جيد",null,null,null,null,{"$f":"IF(MIN(IF(Notes<>\"\",IF(COUNTIF($AG$3:$AG33,Notes)=0,ROW(Notes))))=0,\"\",INDEX($Y:$Y,MIN(IF(Notes<>\"\",IF(COUNTIF($AG$3:$AG33,Notes)=0,ROW(Notes))))))","v":211}]
[32,"مراد محمد صالح محمد زومع",32,18,19,37,18,30,48,14,17,31,0,0,0,20,28,48,18,20,38,0,0,0,202,0.57714285714285718,{"$f":"IF(COUNTIF($Y$3:$Y34,$Y35)=0,OrdeUP100(RANK($Y35,$AG$4:$AG$1000)),OrdeUP100(RANK($Y35,$AG$4:$AG$1000))&\" مكرر\")","v":"الرّابع والعشرون"},"مقبول",null,null,null,null,{"$f":"IF(MIN(IF(Notes<>\"\",IF(COUNTIF($AG$3:$AG34,Notes)=0,ROW(Notes))))=0,\"\",INDEX($Y:$Y,MIN(IF(Notes<>\"\",IF(COUNTIF($AG$3:$AG34,Notes)=0,ROW(Notes))))))","v":239}]
[33,"نواف محمد احمد صالح سخيان",33,20,18,38,20,27,47,10,15,25,0,0,0,18,24,42,12,30,42,0,0,0,194,0.55428571428571427,{"$f":"IF(COUNTIF($Y$3:$Y35,$Y36)=0,OrdeUP100(RANK($Y36,$AG$4:$AG$1000)),OrdeUP100(RANK($Y36,$AG$4:$AG$1000))&\" مكرر\")","v":"السّادس والعشرون"},"مقبول",null,null,null,null,{"$f":"IF(MIN(IF(Notes<>\"\",IF(COUNTIF($AG$3:$AG35,Notes)=0,ROW(Notes))))=0,\"\",INDEX($Y:$Y,MIN(IF(Notes<>\"\",IF(COUNTIF($AG$3:$AG35,Notes)=0,ROW(Notes))))))","v":""}]
[34,"وليد صلاح حيدر علي الفقية",34,20,30,50,20,30,50,18,28,46,0,0,0,20,30,50,14,30,44,0,0,0,240,0.68571428571428572,{"$f":"IF(COUNTIF($Y$3:$Y36,$Y37)=0,OrdeUP100(RANK($Y37,$AG$4:$AG$1000)),OrdeUP100(RANK($Y37,$AG$4:$AG$1000))&\" مكرر\")","v":"السّابع مكرر"},"جيد",null,null,null,null,{"$f":"IF(MIN(IF(Notes<>\"\",IF(COUNTIF($AG$3:$AG36,Notes)=0,ROW(Notes))))=0,\"\",INDEX($Y:$Y,MIN(IF(Notes<>\"\",IF(COUNTIF($AG$3:$AG36,Notes)=0,ROW(Notes))))))","v":""}]
[35,"ياسر سليم صالح محمد سقاف",35,18,19,37,18,27,45,14,23,37,0,0,0,16,2,18,18,30,48,0,0,0,185,0.52857142857142858,{"$f":"IF(COUNTIF($Y$3:$Y37,$Y38)=0,OrdeUP100(RANK($Y38,$AG$4:$AG$1000)),OrdeUP100(RANK($Y38,$AG$4:$AG$1000))&\" مكرر\")","v":"الثّامن والعشرون"},"مقبول",null,null,null,null,{"$f":"IF(MIN(IF(Notes<>\"\",IF(COUNTIF($AG$3:$AG37,Notes)=0,ROW(Notes))))=0,\"\",INDEX($Y:$Y,MIN(IF(Notes<>\"\",IF(COUNTIF($AG$3:$AG37,Notes)=0,ROW(Notes))))))","v":""}]
[36,"يسلم جابر علي جابر سعد",36,20,30,50,20,30,50,20,30,50,0,0,0,20,30,50,16,20,36,0,0,0,236,0.67428571428571427,{"$f":"IF(COUNTIF($Y$3:$Y38,$Y39)=0,OrdeUP100(RANK($Y39,$AG$4:$AG$1000)),OrdeUP100(RANK($Y39,$AG$4:$AG$1000))&\" مكرر\")","v":"العاشر"},"جيد",null,null,null,null,{"$f":"IF(MIN(IF(Notes<>\"\",IF(COUNTIF($AG$3:$AG38,Notes)=0,ROW(Notes))))=0,\"\",INDEX($Y:$Y,MIN(IF(Notes<>\"\",IF(COUNTIF($AG$3:$AG38,Notes)=0,ROW(Notes))))))","v":""}]
[37,"يوسف علي عبداللاه غلام",37,18,30,48,18,27,45,16,20,36,0,0,0,18,25,43,14,25,39,0,0,0,211,0.60285714285714287,{"$f":"IF(COUNTIF($Y$3:$Y39,$Y40)=0,OrdeUP100(RANK($Y40,$AG$4:$AG$1000)),OrdeUP100(RANK($Y40,$AG$4:$AG$1000))&\" مكرر\")","v":"الثّاني والعشرون"},"جيد",null,null,null,null,{"$f":"IF(MIN(IF(Notes<>\"\",IF(COUNTIF($AG$3:$AG39,Notes)=0,ROW(Notes))))=0,\"\",INDEX($Y:$Y,MIN(IF(Notes<>\"\",IF(COUNTIF($AG$3:$AG39,Notes)=0,ROW(Notes))))))","v":""}]
[38,"يوسف ماجد حيدر علي الفقية",38,20,30,50,20,30,50,20,28,48,0,0,0,18,29,47,14,30,44,0,0,0,239,0.68285714285714283,{"$f":"IF(COUNTIF($Y$3:$Y40,$Y41)=0,OrdeUP100(RANK($Y41,$AG$4:$AG$1000)),OrdeUP100(RANK($Y41,$AG$4:$AG$1000))&\" مكرر\")","v":"الثّامن"},"جيد",null,null,null,null,{"$f":"IF(MIN(IF(Notes<>\"\",IF(COUNTIF($AG$3:$AG40,Notes)=0,ROW(Notes))))=0,\"\",INDEX($Y:$Y,MIN(IF(Notes<>\"\",IF(COUNTIF($AG$3:$AG40,Notes)=0,ROW(Notes))))))","v":""}]
[null,null,null,null,null,null,null,null,null,null,null,null,null,null,null,null,null,null,null,null,null,null,null,null,null,null,null,null,null,null,null,null,{"$f":"IF(MIN(IF(Notes<>\"\",IF(COUNTIF($AG$3:$AG41,Notes)=0,ROW(Notes))))=0,\"\",INDEX($Y:$Y,MIN(IF(Notes<>\"\",IF(COUNTIF($AG$3:$AG41,Notes)=0,ROW(Notes))))))","v":""}]
[null,null,null,null,null,null,null,null,null,null,null,null,null,null,null,null,null,null,null,null,null,null,null,null,null,null,null,null,null,null,null,null,{"$f":"IF(MIN(IF(Notes<>\"\",IF(COUNTIF($AG$3:$AG42,Notes)=0,ROW(Notes))))=0,\"\",INDEX($Y:$Y,MIN(IF(Notes<>\"\",IF(COUNTIF($AG$3:$AG42,Notes)=0,ROW(Notes))))))","v":""}]
[null,null,null,null,null,null,null,null,null,null,null,null,null,null,null,null,null,null,null,null,null,null,null,null,null,null,null,null,null,null,null,null,{"$f":"IF(MIN(IF(Notes<>\"\",IF(COUNTIF($AG$3:$AG43,Notes)=0,ROW(Notes))))=0,\"\",INDEX($Y:$Y,MIN(IF(Notes<>\"\",IF(COUNTIF($AG$3:$AG43,Notes)=0,ROW(Notes))))))","v":""}]
[null,null,null,null,null,null,null,null,null,null,null,null,null,null,null,null,null,null,null,null,null,null,null,null,null,null,null,null,null,null,null,null,{"$f":"IF(MIN(IF(Notes<>\"\",IF(COUNTIF($AG$3:$AG44,Notes)=0,ROW(Notes))))=0,\"\",INDEX($Y:$Y,MIN(IF(Notes<>\"\",IF(COUNTIF($AG$3:$AG44,Notes)=0,ROW(Notes))))))","v":""}]
[null,null,null,null,null,null,null,null,null,null,null,null,null,null,null,null,null,null,null,null,null,null,null,null,null,null,null,null,null,null,null,null,{"$f":"IF(MIN(IF(Notes<>\"\",IF(COUNTIF($AG$3:$AG45,Notes)=0,ROW(Notes))))=0,\"\",INDEX($Y:$Y,MIN(IF(Notes<>\"\",IF(COUNTIF($AG$3:$AG45,Notes)=0,ROW(Notes))))))","v":""}]
[null,null,null,null,null,null,null,null,null,null,null,null,null,null,null,null,null,null,null,null,null,null,null,null,null,null,null,null,null,null,null,null,{"$f":"IF(MIN(IF(Notes<>\"\",IF(COUNTIF($AG$3:$AG46,Notes)=0,ROW(Notes))))=0,\"\",INDEX($Y:$Y,MIN(IF(Notes<>\"\",IF(COUNTIF($AG$3:$AG46,Notes)=0,ROW(Notes))))))","v":""}]
[null,null,null,null,null,null,null,null,null,null,null,null,null,null,null,null,null,null,null,null,null,null,null,null,null,null,null,null,null,null,null,null,{"$f":"IF(MIN(IF(Notes<>\"\",IF(COUNTIF($AG$3:$AG47,Notes)=0,ROW(Notes))))=0,\"\",INDEX($Y:$Y,MIN(IF(Notes<>\"\",IF(COUNTIF($AG$3:$AG47,Notes)=0,ROW(Notes))))))","v":""}]
[null,null,null,null,null,null,null,null,null,null,null,null,null,null,null,null,null,null,null,null,null,null,null,null,null,null,null,null,null,null,null,null,{"$f":"IF(MIN(IF(Notes<>\"\",IF(COUNTIF($AG$3:$AG48,Notes)=0,ROW(Notes))))=0,\"\",INDEX($Y:$Y,MIN(IF(Notes<>\"\",IF(COUNTIF($AG$3:$AG48,Notes)=0,ROW(Notes))))))","v":""}]
[null,null,null,null,null,null,null,null,null,null,null,null,null,null,null,null,null,null,null,null,null,null,null,null,null,null,null,null,null,null,null,null,{"$f":"IF(MIN(IF(Notes<>\"\",IF(COUNTIF($AG$3:$AG49,Notes)=0,ROW(Notes))))=0,\"\",INDEX($Y:$Y,MIN(IF(Notes<>\"\",IF(COUNTIF($AG$3:$AG49,Notes)=0,ROW(Notes))))))","v":""}]
[null,null,null,null,null,null,null,null,null,null,null,null,null,null,null,null,null,null,null,null,null,null,null,null,null,null,null,null,null,null,null,null,{"$f":"IF(MIN(IF(Notes<>\"\",IF(COUNTIF($AG$3:$AG50,Notes)=0,ROW(Notes))))=0,\"\",INDEX($Y:$Y,MIN(IF(Notes<>\"\",IF(COUNTIF($AG$3:$AG50,Notes)=0,ROW(Notes))))))","v":""}]
[null,null,null,null,null,null,null,null,null,null,null,null,null,null,null,null,null,null,null,null,null,null,null,null,null,null,null,null,null,null,null,null,{"$f":"IF(MIN(IF(Notes<>\"\",IF(COUNTIF($AG$3:$AG51,Notes)=0,ROW(Notes))))=0,\"\",INDEX($Y:$Y,MIN(IF(Notes<>\"\",IF(COUNTIF($AG$3:$AG51,Notes)=0,ROW(Notes))))))","v":""}]
[null,null,null,null,null,null,null,null,null,null,null,null,null,null,null,null,null,null,null,null,null,null,null,null,null,null,null,null,null,null,null,null,{"$f":"IF(MIN(IF(Notes<>\"\",IF(COUNTIF($AG$3:$AG52,Notes)=0,ROW(Notes))))=0,\"\",INDEX($Y:$Y,MIN(IF(Notes<>\"\",IF(COUNTIF($AG$3:$AG52,Notes)=0,ROW(Notes))))))","v":""}]
[null,null,null,null,null,null,null,null,null,null,null,null,null,null,null,null,null,null,null,null,null,null,null,null,null,null,null,null,null,null,null,null,{"$f":"IF(MIN(IF(Notes<>\"\",IF(COUNTIF($AG$3:$AG53,Notes)=0,ROW(Notes))))=0,\"\",INDEX($Y:$Y,MIN(IF(Notes<>\"\",IF(COUNTIF($AG$3:$AG53,Notes)=0,ROW(Notes))))))","v":""}]
[null,null,null,null,null,null,null,null,null,null,null,null,null,null,null,null,null,null,null,null,null,null,null,null,null,null,null,null,null,null,null,null,{"$f":"IF(MIN(IF(Notes<>\"\",IF(COUNTIF($AG$3:$AG54,Notes)=0,ROW(Notes))))=0,\"\",INDEX($Y:$Y,MIN(IF(Notes<>\"\",IF(COUNTIF($AG$3:$AG54,Notes)=0,ROW(Notes))))))","v":""}]
[null,null,null,null,null,null,null,null,null,null,null,null,null,null,null,null,null,null,null,null,null,null,null,null,null,null,null,null,null,null,null,null,{"$f":"IF(MIN(IF(Notes<>\"\",IF(COUNTIF($AG$3:$AG55,Notes)=0,ROW(Notes))))=0,\"\",INDEX($Y:$Y,MIN(IF(Notes<>\"\",IF(COUNTIF($AG$3:$AG55,Notes)=0,ROW(Notes))))))","v":""}]
[null,null,null,null,null,null,null,null,null,null,null,null,null,null,null,null,null,null,null,null,null,null,null,null,null,null,null,null,null,null,null,null,{"$f":"IF(MIN(IF(Notes<>\"\",IF(COUNTIF($AG$3:$AG56,Notes)=0,ROW(Notes))))=0,\"\",INDEX($Y:$Y,MIN(IF(Notes<>\"\",IF(COUNTIF($AG$3:$AG56,Notes)=0,ROW(Notes))))))","v":""}]
[null,null,null,null,null,null,null,null,null,null,null,null,null,null,null,null,null,null,null,null,null,null,null,null,null,null,null,null,null,null,null,null,{"$f":"IF(MIN(IF(Notes<>\"\",IF(COUNTIF($AG$3:$AG57,Notes)=0,ROW(Notes))))=0,\"\",INDEX($Y:$Y,MIN(IF(Notes<>\"\",IF(COUNTIF($AG$3:$AG57,Notes)=0,ROW(Notes))))))","v":""}]
[null,null,null,null,null,null,null,null,null,null,null,null,null,null,null,null,null,null,null,null,null,null,null,null,null,null,null,null,null,null,null,null,{"$f":"IF(MIN(IF(Notes<>\"\",IF(COUNTIF($AG$3:$AG58,Notes)=0,ROW(Notes))))=0,\"\",INDEX($Y:$Y,MIN(IF(Notes<>\"\",IF(COUNTIF($AG$3:$AG58,Notes)=0,ROW(Notes))))))","v":""}]
[null,null,null,null,null,null,null,null,null,null,null,null,null,null,null,null,null,null,null,null,null,null,null,null,null,null,null,null,null,null,null,null,{"$f":"IF(MIN(IF(Notes<>\"\",IF(COUNTIF($AG$3:$AG59,Notes)=0,ROW(Notes))))=0,\"\",INDEX($Y:$Y,MIN(IF(Notes<>\"\",IF(COUNTIF($AG$3:$AG59,Notes)=0,ROW(Notes))))))","v":""}]
[null,null,null,null,null,null,null,null,null,null,null,null,null,null,null,null,null,null,null,null,null,null,null,null,null,null,null,null,null,null,null,null,{"$f":"IF(MIN(IF(Notes<>\"\",IF(COUNTIF($AG$3:$AG60,Notes)=0,ROW(Notes))))=0,\"\",INDEX($Y:$Y,MIN(IF(Notes<>\"\",IF(COUNTIF($AG$3:$AG60,Notes)=0,ROW(Notes))))))","v":""}]
[null,null,null,null,null,null,null,null,null,null,null,null,null,null,null,null,null,null,null,null,null,null,null,null,null,null,null,null,null,null,null,null,{"$f":"IF(MIN(IF(Notes<>\"\",IF(COUNTIF($AG$3:$AG61,Notes)=0,ROW(Notes))))=0,\"\",INDEX($Y:$Y,MIN(IF(Notes<>\"\",IF(COUNTIF($AG$3:$AG61,Notes)=0,ROW(Notes))))))","v":""}]
[null,null,null,null,null,null,null,null,null,null,null,null,null,null,null,null,null,null,null,null,null,null,null,null,null,null,null,null,null,null,null,null,{"$f":"IF(MIN(IF(Notes<>\"\",IF(COUNTIF($AG$3:$AG62,Notes)=0,ROW(Notes))))=0,\"\",INDEX($Y:$Y,MIN(IF(Notes<>\"\",IF(COUNTIF($AG$3:$AG62,Notes)=0,ROW(Notes))))))","v":""}]
[null,null,null,null,null,null,null,null,null,null,null,null,null,null,null,null,null,null,null,null,null,null,null,null,null,null,null,null,null,null,null,null,{"$f":"IF(MIN(IF(Notes<>\"\",IF(COUNTIF($AG$3:$AG63,Notes)=0,ROW(Notes))))=0,\"\",INDEX($Y:$Y,MIN(IF(Notes<>\"\",IF(COUNTIF($AG$3:$AG63,Notes)=0,ROW(Notes))))))","v":""}]
[null,null,null,null,null,null,null,null,null,null,null,null,null,null,null,null,null,null,null,null,null,null,null,null,null,null,null,null,null,null,null,null,{"$f":"IF(MIN(IF(Notes<>\"\",IF(COUNTIF($AG$3:$AG64,Notes)=0,ROW(Notes))))=0,\"\",INDEX($Y:$Y,MIN(IF(Notes<>\"\",IF(COUNTIF($AG$3:$AG64,Notes)=0,ROW(Notes))))))","v":""}]
[null,null,null,null,null,null,null,null,null,null,null,null,null,null,null,null,null,null,null,null,null,null,null,null,null,null,null,null,null,null,null,null,{"$f":"IF(MIN(IF(Notes<>\"\",IF(COUNTIF($AG$3:$AG65,Notes)=0,ROW(Notes))))=0,\"\",INDEX($Y:$Y,MIN(IF(Notes<>\"\",IF(COUNTIF($AG$3:$AG65,Notes)=0,ROW(Notes))))))","v":""}]
[null,null,null,null,null,null,null,null,null,null,null,null,null,null,null,null,null,null,null,null,null,null,null,null,null,null,null,null,null,null,null,null,{"$f":"IF(MIN(IF(Notes<>\"\",IF(COUNTIF($AG$3:$AG66,Notes)=0,ROW(Notes))))=0,\"\",INDEX($Y:$Y,MIN(IF(Notes<>\"\",IF(COUNTIF($AG$3:$AG66,Notes)=0,ROW(Notes))))))","v":""}]
[null,null,null,null,null,null,null,null,null,null,null,null,null,null,null,null,null,null,null,null,null,null,null,null,null,null,null,null,null,null,null,null,{"$f":"IF(MIN(IF(Notes<>\"\",IF(COUNTIF($AG$3:$AG67,Notes)=0,ROW(Notes))))=0,\"\",INDEX($Y:$Y,MIN(IF(Notes<>\"\",IF(COUNTIF($AG$3:$AG67,Notes)=0,ROW(Notes))))))","v":""}]
[null,null,null,null,null,null,null,null,null,null,null,null,null,null,null,null,null,null,null,null,null,null,null,null,null,null,null,null,null,null,null,null,{"$f":"IF(MIN(IF(Notes<>\"\",IF(COUNTIF($AG$3:$AG68,Notes)=0,ROW(Notes))))=0,\"\",INDEX($Y:$Y,MIN(IF(Notes<>\"\",IF(COUNTIF($AG$3:$AG68,Notes)=0,ROW(Notes))))))","v":""}]
[null,null,null,null,null,null,null,null,null,null,null,null,null,null,null,null,null,null,null,null,null,null,null,null,null,null,null,null,null,null,null,null,{"$f":"IF(MIN(IF(Notes<>\"\",IF(COUNTIF($AG$3:$AG69,Notes)=0,ROW(Notes))))=0,\"\",INDEX($Y:$Y,MIN(IF(Notes<>\"\",IF(COUNTIF($AG$3:$AG69,Notes)=0,ROW(Notes))))))","v":""}]
[null,null,null,null,null,null,null,null,null,null,null,null,null,null,null,null,null,null,null,null,null,null,null,null,null,null,null,null,null,null,null,null,{"$f":"IF(MIN(IF(Notes<>\"\",IF(COUNTIF($AG$3:$AG70,Notes)=0,ROW(Notes))))=0,\"\",INDEX($Y:$Y,MIN(IF(Notes<>\"\",IF(COUNTIF($AG$3:$AG70,Notes)=0,ROW(Notes))))))","v":""}]
[null,null,null,null,null,null,null,null,null,null,null,null,null,null,null,null,null,null,null,null,null,null,null,null,null,null,null,null,null,null,null,null,{"$f":"IF(MIN(IF(Notes<>\"\",IF(COUNTIF($AG$3:$AG71,Notes)=0,ROW(Notes))))=0,\"\",INDEX($Y:$Y,MIN(IF(Notes<>\"\",IF(COUNTIF($AG$3:$AG71,Notes)=0,ROW(Notes))))))","v":""}]
[null,null,null,null,null,null,null,null,null,null,null,null,null,null,null,null,null,null,null,null,null,null,null,null,null,null,null,null,null,null,null,null,{"$f":"IF(MIN(IF(Notes<>\"\",IF(COUNTIF($AG$3:$AG72,Notes)=0,ROW(Notes))))=0,\"\",INDEX($Y:$Y,MIN(IF(Notes<>\"\",IF(COUNTIF($AG$3:$AG72,Notes)=0,ROW(Notes))))))","v":""}]
[null,null,null,null,null,null,null,null,null,null,null,null,null,null,null,null,null,null,null,null,null,null,null,null,null,null,null,null,null,null,null,null,{"$f":"IF(MIN(IF(Notes<>\"\",IF(COUNTIF($AG$3:$AG73,Notes)=0,ROW(Notes))))=0,\"\",INDEX($Y:$Y,MIN(IF(Notes<>\"\",IF(COUNTIF($AG$3:$AG73,Notes)=0,ROW(Notes))))))","v":""}]
[null,null,null,null,null,null,null,null,null,null,null,null,null,null,null,null,null,null,null,null,null,null,null,null,null,null,null,null,null,null,null,null,{"$f":"IF(MIN(IF(Notes<>\"\",IF(COUNTIF($AG$3:$AG74,Notes)=0,ROW(Notes))))=0,\"\",INDEX($Y:$Y,MIN(IF(Notes<>\"\",IF(COUNTIF($AG$3:$AG74,Notes)=0,ROW(Notes))))))","v":""}]
[null,null,null,null,null,null,null,null,null,null,null,null,null,null,null,null,null,null,null,null,null,null,null,null,null,null,null,null,null,null,null,null,{"$f":"IF(MIN(IF(Notes<>\"\",IF(COUNTIF($AG$3:$AG75,Notes)=0,ROW(Notes))))=0,\"\",INDEX($Y:$Y,MIN(IF(Notes<>\"\",IF(COUNTIF($AG$3:$AG75,Notes)=0,ROW(Notes))))))","v":""}]
[null,null,null,null,null,null,null,null,null,null,null,null,null,null,null,null,null,null,null,null,null,null,null,null,null,null,null,null,null,null,null,null,{"$f":"IF(MIN(IF(Notes<>\"\",IF(COUNTIF($AG$3:$AG76,Notes)=0,ROW(Notes))))=0,\"\",INDEX($Y:$Y,MIN(IF(Notes<>\"\",IF(COUNTIF($AG$3:$AG76,Notes)=0,ROW(Notes))))))","v":""}]
[null,null,null,null,null,null,null,null,null,null,null,null,null,null,null,null,null,null,null,null,null,null,null,null,null,null,null,null,null,null,null,null,{"$f":"IF(MIN(IF(Notes<>\"\",IF(COUNTIF($AG$3:$AG77,Notes)=0,ROW(Notes))))=0,\"\",INDEX($Y:$Y,MIN(IF(Notes<>\"\",IF(COUNTIF($AG$3:$AG77,Notes)=0,ROW(Notes))))))","v":""}]
[null,null,null,null,null,null,null,null,null,null,null,null,null,null,null,null,null,null,null,null,null,null,null,null,null,null,null,null,null,null,null,null,{"$f":"IF(MIN(IF(Notes<>\"\",IF(COUNTIF($AG$3:$AG78,Notes)=0,ROW(Notes))))=0,\"\",INDEX($Y:$Y,MIN(IF(Notes<>\"\",IF(COUNTIF($AG$3:$AG78,Notes)=0,ROW(Notes))))))","v":""}]
[null,null,null,null,null,null,null,null,null,null,null,null,null,null,null,null,null,null,null,null,null,null,null,null,null,null,null,null,null,null,null,null,{"$f":"IF(MIN(IF(Notes<>\"\",IF(COUNTIF($AG$3:$AG79,Notes)=0,ROW(Notes))))=0,\"\",INDEX($Y:$Y,MIN(IF(Notes<>\"\",IF(COUNTIF($AG$3:$AG79,Notes)=0,ROW(Notes))))))","v":""}]
[null,null,null,null,null,null,null,null,null,null,null,null,null,null,null,null,null,null,null,null,null,null,null,null,null,null,null,null,null,null,null,null,{"$f":"IF(MIN(IF(Notes<>\"\",IF(COUNTIF($AG$3:$AG80,Notes)=0,ROW(Notes))))=0,\"\",INDEX($Y:$Y,MIN(IF(Notes<>\"\",IF(COUNTIF($AG$3:$AG80,Notes)=0,ROW(Notes))))))","v":""}]
[null,null,null,null,null,null,null,null,null,null,null,null,null,null,null,null,null,null,null,null,null,null,null,null,null,null,null,null,null,null,null,null,{"$f":"IF(MIN(IF(Notes<>\"\",IF(COUNTIF($AG$3:$AG81,Notes)=0,ROW(Notes))))=0,\"\",INDEX($Y:$Y,MIN(IF(Notes<>\"\",IF(COUNTIF($AG$3:$AG81,Notes)=0,ROW(Notes))))))","v":""}]
[null,null,null,null,null,null,null,null,null,null,null,null,null,null,null,null,null,null,null,null,null,null,null,null,null,null,null,null,null,null,null,null,{"$f":"IF(MIN(IF(Notes<>\"\",IF(COUNTIF($AG$3:$AG82,Notes)=0,ROW(Notes))))=0,\"\",INDEX($Y:$Y,MIN(IF(Notes<>\"\",IF(COUNTIF($AG$3:$AG82,Notes)=0,ROW(Notes))))))","v":""}]
[null,null,null,null,null,null,null,null,null,null,null,null,null,null,null,null,null,null,null,null,null,null,null,null,null,null,null,null,null,null,null,null,{"$f":"IF(MIN(IF(Notes<>\"\",IF(COUNTIF($AG$3:$AG83,Notes)=0,ROW(Notes))))=0,\"\",INDEX($Y:$Y,MIN(IF(Notes<>\"\",IF(COUNTIF($AG$3:$AG83,Notes)=0,ROW(Notes))))))","v":""}]
[null,null,null,null,null,null,null,null,null,null,null,null,null,null,null,null,null,null,null,null,null,null,null,null,null,null,null,null,null,null,null,null,{"$f":"IF(MIN(IF(Notes<>\"\",IF(COUNTIF($AG$3:$AG84,Notes)=0,ROW(Notes))))=0,\"\",INDEX($Y:$Y,MIN(IF(Notes<>\"\",IF(COUNTIF($AG$3:$AG84,Notes)=0,ROW(Notes))))))","v":""}]
[null,null,null,null,null,null,null,null,null,null,null,null,null,null,null,null,null,null,null,null,null,null,null,null,null,null,null,null,null,null,null,null,{"$f":"IF(MIN(IF(Notes<>\"\",IF(COUNTIF($AG$3:$AG85,Notes)=0,ROW(Notes))))=0,\"\",INDEX($Y:$Y,MIN(IF(Notes<>\"\",IF(COUNTIF($AG$3:$AG85,Notes)=0,ROW(Notes))))))","v":""}]
[null,null,null,null,null,null,null,null,null,null,null,null,null,null,null,null,null,null,null,null,null,null,null,null,null,null,null,null,null,null,null,null,{"$f":"IF(MIN(IF(Notes<>\"\",IF(COUNTIF($AG$3:$AG86,Notes)=0,ROW(Notes))))=0,\"\",INDEX($Y:$Y,MIN(IF(Notes<>\"\",IF(COUNTIF($AG$3:$AG86,Notes)=0,ROW(Notes))))))","v":""}]
[null,null,null,null,null,null,null,null,null,null,null,null,null,null,null,null,null,null,null,null,null,null,null,null,null,null,null,null,null,null,null,null,{"$f":"IF(MIN(IF(Notes<>\"\",IF(COUNTIF($AG$3:$AG87,Notes)=0,ROW(Notes))))=0,\"\",INDEX($Y:$Y,MIN(IF(Notes<>\"\",IF(COUNTIF($AG$3:$AG87,Notes)=0,ROW(Notes))))))","v":""}]
[null,null,null,null,null,null,null,null,null,null,null,null,null,null,null,null,null,null,null,null,null,null,null,null,null,null,null,null,null,null,null,null,{"$f":"IF(MIN(IF(Notes<>\"\",IF(COUNTIF($AG$3:$AG88,Notes)=0,ROW(Notes))))=0,\"\",INDEX($Y:$Y,MIN(IF(Notes<>\"\",IF(COUNTIF($AG$3:$AG88,Notes)=0,ROW(Notes))))))","v":""}]
[null,null,null,null,null,null,null,null,null,null,null,null,null,null,null,null,null,null,null,null,null,null,null,null,null,null,null,null,null,null,null,null,{"$f":"IF(MIN(IF(Notes<>\"\",IF(COUNTIF($AG$3:$AG89,Notes)=0,ROW(Notes))))=0,\"\",INDEX($Y:$Y,MIN(IF(Notes<>\"\",IF(COUNTIF($AG$3:$AG89,Notes)=0,ROW(Notes))))))","v":""}]
[null,null,null,null,null,null,null,null,null,null,null,null,null,null,null,null,null,null,null,null,null,null,null,null,null,null,null,null,null,null,null,null,{"$f":"IF(MIN(IF(Notes<>\"\",IF(COUNTIF($AG$3:$AG90,Notes)=0,ROW(Notes))))=0,\"\",INDEX($Y:$Y,MIN(IF(Notes<>\"\",IF(COUNTIF($AG$3:$AG90,Notes)=0,ROW(Notes))))))","v":""}]
[null,null,null,null,null,null,null,null,null,null,null,null,null,null,null,null,null,null,null,null,null,null,null,null,null,null,null,null,null,null,null,null,{"$f":"IF(MIN(IF(Notes<>\"\",IF(COUNTIF($AG$3:$AG91,Notes)=0,ROW(Notes))))=0,\"\",INDEX($Y:$Y,MIN(IF(Notes<>\"\",IF(COUNTIF($AG$3:$AG91,Notes)=0,ROW(Notes))))))","v":""}]
[null,null,null,null,null,null,null,null,null,null,null,null,null,null,null,null,null,null,null,null,null,null,null,null,null,null,null,null,null,null,null,null,{"$f":"IF(MIN(IF(Notes<>\"\",IF(COUNTIF($AG$3:$AG92,Notes)=0,ROW(Notes))))=0,\"\",INDEX($Y:$Y,MIN(IF(Notes<>\"\",IF(COUNTIF($AG$3:$AG92,Notes)=0,ROW(Notes))))))","v":""}]
[null,null,null,null,null,null,null,null,null,null,null,null,null,null,null,null,null,null,null,null,null,null,null,null,null,null,null,null,null,null,null,null,{"$f":"IF(MIN(IF(Notes<>\"\",IF(COUNTIF($AG$3:$AG93,Notes)=0,ROW(Notes))))=0,\"\",INDEX($Y:$Y,MIN(IF(Notes<>\"\",IF(COUNTIF($AG$3:$AG93,Notes)=0,ROW(Notes))))))","v":""}]
[null,null,null,null,null,null,null,null,null,null,null,null,null,null,null,null,null,null,null,null,null,null,null,null,null,null,null,null,null,null,null,null,{"$f":"IF(MIN(IF(Notes<>\"\",IF(COUNTIF($AG$3:$AG94,Notes)=0,ROW(Notes))))=0,\"\",INDEX($Y:$Y,MIN(IF(Notes<>\"\",IF(COUNTIF($AG$3:$AG94,Notes)=0,ROW(Notes))))))","v":""}]
[null,null,null,null,null,null,null,null,null,null,null,null,null,null,null,null,null,null,null,null,null,null,null,null,null,null,null,null,null,null,null,null,{"$f":"IF(MIN(IF(Notes<>\"\",IF(COUNTIF($AG$3:$AG95,Notes)=0,ROW(Notes))))=0,\"\",INDEX($Y:$Y,MIN(IF(Notes<>\"\",IF(COUNTIF($AG$3:$AG95,Notes)=0,ROW(Notes))))))","v":""}]
[null,null,null,null,null,null,null,null,null,null,null,null,null,null,null,null,null,null,null,null,null,null,null,null,null,null,null,null,null,null,null,null,{"$f":"IF(MIN(IF(Notes<>\"\",IF(COUNTIF($AG$3:$AG96,Notes)=0,ROW(Notes))))=0,\"\",INDEX($Y:$Y,MIN(IF(Notes<>\"\",IF(COUNTIF($AG$3:$AG96,Notes)=0,ROW(Notes))))))","v":""}]
[null,null,null,null,null,null,null,null,null,null,null,null,null,null,null,null,null,null,null,null,null,null,null,null,null,null,null,null,null,null,null,null,{"$f":"IF(MIN(IF(Notes<>\"\",IF(COUNTIF($AG$3:$AG97,Notes)=0,ROW(Notes))))=0,\"\",INDEX($Y:$Y,MIN(IF(Notes<>\"\",IF(COUNTIF($AG$3:$AG97,Notes)=0,ROW(Notes))))))","v":""}]
[null,null,null,null,null,null,null,null,null,null,null,null,null,null,null,null,null,null,null,null,null,null,null,null,null,null,null,null,null,null,null,null,{"$f":"IF(MIN(IF(Notes<>\"\",IF(COUNTIF($AG$3:$AG98,Notes)=0,ROW(Notes))))=0,\"\",INDEX($Y:$Y,MIN(IF(Notes<>\"\",IF(COUNTIF($AG$3:$AG98,Notes)=0,ROW(Notes))))))","v":""}]
[null,null,null,null,null,null,null,null,null,null,null,null,null,null,null,null,null,null,null,null,null,null,null,null,null,null,null,null,null,null,null,null,{"$f":"IF(MIN(IF(Notes<>\"\",IF(COUNTIF($AG$3:$AG99,Notes)=0,ROW(Notes))))=0,\"\",INDEX($Y:$Y,MIN(IF(Notes<>\"\",IF(COUNTIF($AG$3:$AG99,Notes)=0,ROW(Notes))))))","v":""}]
[null,null,null,null,null,null,null,null,null,null,null,null,null,null,null,null,null,null,null,null,null,null,null,null,null,null,null,null,null,null,null,null,{"$f":"IF(MIN(IF(Notes<>\"\",IF(COUNTIF($AG$3:$AG100,Notes)=0,ROW(Notes))))=0,\"\",INDEX($Y:$Y,MIN(IF(Notes<>\"\",IF(COUNTIF($AG$3:$AG100,Notes)=0,ROW(Notes))))))","v":""}]
[null,null,null,null,null,null,null,null,null,null,null,null,null,null,null,null,null,null,null,null,null,null,null,null,null,null,null,null,null,null,null,null,{"$f":"IF(MIN(IF(Notes<>\"\",IF(COUNTIF($AG$3:$AG101,Notes)=0,ROW(Notes))))=0,\"\",INDEX($Y:$Y,MIN(IF(Notes<>\"\",IF(COUNTIF($AG$3:$AG101,Notes)=0,ROW(Notes))))))","v":""}]
[null,null,null,null,null,null,null,null,null,null,null,null,null,null,null,null,null,null,null,null,null,null,null,null,null,null,null,null,null,null,null,null,{"$f":"IF(MIN(IF(Notes<>\"\",IF(COUNTIF($AG$3:$AG102,Notes)=0,ROW(Notes))))=0,\"\",INDEX($Y:$Y,MIN(IF(Notes<>\"\",IF(COUNTIF($AG$3:$AG102,Notes)=0,ROW(Notes))))))","v":""}]
[null,null,null,null,null,null,null,null,null,null,null,null,null,null,null,null,null,null,null,null,null,null,null,null,null,null,null,null,null,null,null,null,{"$f":"IF(MIN(IF(Notes<>\"\",IF(COUNTIF($AG$3:$AG103,Notes)=0,ROW(Notes))))=0,\"\",INDEX($Y:$Y,MIN(IF(Notes<>\"\",IF(COUNTIF($AG$3:$AG103,Notes)=0,ROW(Notes))))))","v":""}]
[null,null,null,null,null,null,null,null,null,null,null,null,null,null,null,null,null,null,null,null,null,null,null,null,null,null,null,null,null,null,null,null,{"$f":"IF(MIN(IF(Notes<>\"\",IF(COUNTIF($AG$3:$AG104,Notes)=0,ROW(Notes))))=0,\"\",INDEX($Y:$Y,MIN(IF(Notes<>\"\",IF(COUNTIF($AG$3:$AG104,Notes)=0,ROW(Notes))))))","v":""}]
[null,null,null,null,null,null,null,null,null,null,null,null,null,null,null,null,null,null,null,null,null,null,null,null,null,null,null,null,null,null,null,null,{"$f":"IF(MIN(IF(Notes<>\"\",IF(COUNTIF($AG$3:$AG105,Notes)=0,ROW(Notes))))=0,\"\",INDEX($Y:$Y,MIN(IF(Notes<>\"\",IF(COUNTIF($AG$3:$AG105,Notes)=0,ROW(Notes))))))","v":""}]
[null,null,null,null,null,null,null,null,null,null,null,null,null,null,null,null,null,null,null,null,null,null,null,null,null,null,null,null,null,null,null,null,{"$f":"IF(MIN(IF(Notes<>\"\",IF(COUNTIF($AG$3:$AG106,Notes)=0,ROW(Notes))))=0,\"\",INDEX($Y:$Y,MIN(IF(Notes<>\"\",IF(COUNTIF($AG$3:$AG106,Notes)=0,ROW(Notes))))))","v":""}]
[null,null,null,null,null,null,null,null,null,null,null,null,null,null,null,null,null,null,null,null,null,null,null,null,null,null,null,null,null,null,null,null,{"$f":"IF(MIN(IF(Notes<>\"\",IF(COUNTIF($AG$3:$AG107,Notes)=0,ROW(Notes))))=0,\"\",INDEX($Y:$Y,MIN(IF(Notes<>\"\",IF(COUNTIF($AG$3:$AG107,Notes)=0,ROW(Notes))))))","v":""}]
[null,null,null,null,null,null,null,null,null,null,null,null,null,null,null,null,null,null,null,null,null,null,null,null,null,null,null,null,null,null,null,null,{"$f":"IF(MIN(IF(Notes<>\"\",IF(COUNTIF($AG$3:$AG108,Notes)=0,ROW(Notes))))=0,\"\",INDEX($Y:$Y,MIN(IF(Notes<>\"\",IF(COUNTIF($AG$3:$AG108,Notes)=0,ROW(Notes))))))","v":""}]
[null,null,null,null,null,null,null,null,null,null,null,null,null,null,null,null,null,null,null,null,null,null,null,null,null,null,null,null,null,null,null,null,{"$f":"IF(MIN(IF(Notes<>\"\",IF(COUNTIF($AG$3:$AG109,Notes)=0,ROW(Notes))))=0,\"\",INDEX($Y:$Y,MIN(IF(Notes<>\"\",IF(COUNTIF($AG$3:$AG109,Notes)=0,ROW(Notes))))))","v":""}]
[null,null,null,null,null,null,null,null,null,null,null,null,null,null,null,null,null,null,null,null,null,null,null,null,null,null,null,null,null,null,null,null,{"$f":"IF(MIN(IF(Notes<>\"\",IF(COUNTIF($AG$3:$AG110,Notes)=0,ROW(Notes))))=0,\"\",INDEX($Y:$Y,MIN(IF(Notes<>\"\",IF(COUNTIF($AG$3:$AG110,Notes)=0,ROW(Notes))))))","v":""}]
[null,null,null,null,null,null,null,null,null,null,null,null,null,null,null,null,null,null,null,null,null,null,null,null,null,null,null,null,null,null,null,null,{"$f":"IF(MIN(IF(Notes<>\"\",IF(COUNTIF($AG$3:$AG111,Notes)=0,ROW(Notes))))=0,\"\",INDEX($Y:$Y,MIN(IF(Notes<>\"\",IF(COUNTIF($AG$3:$AG111,Notes)=0,ROW(Notes))))))","v":""}]
[null,null,null,null,null,null,null,null,null,null,null,null,null,null,null,null,null,null,null,null,null,null,null,null,null,null,null,null,null,null,null,null,{"$f":"IF(MIN(IF(Notes<>\"\",IF(COUNTIF($AG$3:$AG112,Notes)=0,ROW(Notes))))=0,\"\",INDEX($Y:$Y,MIN(IF(Notes<>\"\",IF(COUNTIF($AG$3:$AG112,Notes)=0,ROW(Notes))))))","v":""}]
[null,null,null,null,null,null,null,null,null,null,null,null,null,null,null,null,null,null,null,null,null,null,null,null,null,null,null,null,null,null,null,null,{"$f":"IF(MIN(IF(Notes<>\"\",IF(COUNTIF($AG$3:$AG113,Notes)=0,ROW(Notes))))=0,\"\",INDEX($Y:$Y,MIN(IF(Notes<>\"\",IF(COUNTIF($AG$3:$AG113,Notes)=0,ROW(Notes))))))","v":""}]
[null,null,null,null,null,null,null,null,null,null,null,null,null,null,null,null,null,null,null,null,null,null,null,null,null,null,null,null,null,null,null,null,{"$f":"IF(MIN(IF(Notes<>\"\",IF(COUNTIF($AG$3:$AG114,Notes)=0,ROW(Notes))))=0,\"\",INDEX($Y:$Y,MIN(IF(Notes<>\"\",IF(COUNTIF($AG$3:$AG114,Notes)=0,ROW(Notes))))))","v":""}]
[null,null,null,null,null,null,null,null,null,null,null,null,null,null,null,null,null,null,null,null,null,null,null,null,null,null,null,null,null,null,null,null,{"$f":"IF(MIN(IF(Notes<>\"\",IF(COUNTIF($AG$3:$AG115,Notes)=0,ROW(Notes))))=0,\"\",INDEX($Y:$Y,MIN(IF(Notes<>\"\",IF(COUNTIF($AG$3:$AG115,Notes)=0,ROW(Notes))))))","v":""}]
[null,null,null,null,null,null,null,null,null,null,null,null,null,null,null,null,null,null,null,null,null,null,null,null,null,null,null,null,null,null,null,null,{"$f":"IF(MIN(IF(Notes<>\"\",IF(COUNTIF($AG$3:$AG116,Notes)=0,ROW(Notes))))=0,\"\",INDEX($Y:$Y,MIN(IF(Notes<>\"\",IF(COUNTIF($AG$3:$AG116,Notes)=0,ROW(Notes))))))","v":""}]
[null,null,null,null,null,null,null,null,null,null,null,null,null,null,null,null,null,null,null,null,null,null,null,null,null,null,null,null,null,null,null,null,{"$f":"IF(MIN(IF(Notes<>\"\",IF(COUNTIF($AG$3:$AG117,Notes)=0,ROW(Notes))))=0,\"\",INDEX($Y:$Y,MIN(IF(Notes<>\"\",IF(COUNTIF($AG$3:$AG117,Notes)=0,ROW(Notes))))))","v":""}]
[null,null,null,null,null,null,null,null,null,null,null,null,null,null,null,null,null,null,null,null,null,null,null,null,null,null,null,null,null,null,null,null,{"$f":"IF(MIN(IF(Notes<>\"\",IF(COUNTIF($AG$3:$AG118,Notes)=0,ROW(Notes))))=0,\"\",INDEX($Y:$Y,MIN(IF(Notes<>\"\",IF(COUNTIF($AG$3:$AG118,Notes)=0,ROW(Notes))))))","v":""}]
[null,null,null,null,null,null,null,null,null,null,null,null,null,null,null,null,null,null,null,null,null,null,null,null,null,null,null,null,null,null,null,null,{"$f":"IF(MIN(IF(Notes<>\"\",IF(COUNTIF($AG$3:$AG119,Notes)=0,ROW(Notes))))=0,\"\",INDEX($Y:$Y,MIN(IF(Notes<>\"\",IF(COUNTIF($AG$3:$AG119,Notes)=0,ROW(Notes))))))","v":""}]
[null,null,null,null,null,null,null,null,null,null,null,null,null,null,null,null,null,null,null,null,null,null,null,null,null,null,null,null,null,null,null,null,{"$f":"IF(MIN(IF(Notes<>\"\",IF(COUNTIF($AG$3:$AG120,Notes)=0,ROW(Notes))))=0,\"\",INDEX($Y:$Y,MIN(IF(Notes<>\"\",IF(COUNTIF($AG$3:$AG120,Notes)=0,ROW(Notes))))))","v":""}]
[null,null,null,null,null,null,null,null,null,null,null,null,null,null,null,null,null,null,null,null,null,null,null,null,null,null,null,null,null,null,null,null,{"$f":"IF(MIN(IF(Notes<>\"\",IF(COUNTIF($AG$3:$AG121,Notes)=0,ROW(Notes))))=0,\"\",INDEX($Y:$Y,MIN(IF(Notes<>\"\",IF(COUNTIF($AG$3:$AG121,Notes)=0,ROW(Notes))))))","v":""}]
[null,null,null,null,null,null,null,null,null,null,null,null,null,null,null,null,null,null,null,null,null,null,null,null,null,null,null,null,null,null,null,null,{"$f":"IF(MIN(IF(Notes<>\"\",IF(COUNTIF($AG$3:$AG122,Notes)=0,ROW(Notes))))=0,\"\",INDEX($Y:$Y,MIN(IF(Notes<>\"\",IF(COUNTIF($AG$3:$AG122,Notes)=0,ROW(Notes))))))","v":""}]
[null,null,null,null,null,null,null,null,null,null,null,null,null,null,null,null,null,null,null,null,null,null,null,null,null,null,null,null,null,null,null,null,{"$f":"IF(MIN(IF(Notes<>\"\",IF(COUNTIF($AG$3:$AG123,Notes)=0,ROW(Notes))))=0,\"\",INDEX($Y:$Y,MIN(IF(Notes<>\"\",IF(COUNTIF($AG$3:$AG123,Notes)=0,ROW(Notes))))))","v":""}]
[null,null,null,null,null,null,null,null,null,null,null,null,null,null,null,null,null,null,null,null,null,null,null,null,null,null,null,null,null,null,null,null,{"$f":"IF(MIN(IF(Notes<>\"\",IF(COUNTIF($AG$3:$AG124,Notes)=0,ROW(Notes))))=0,\"\",INDEX($Y:$Y,MIN(IF(Notes<>\"\",IF(COUNTIF($AG$3:$AG124,Notes)=0,ROW(Notes))))))","v":""}]
[null,null,null,null,null,null,null,null,null,null,null,null,null,null,null,null,null,null,null,null,null,null,null,null,null,null,null,null,null,null,null,null,{"$f":"IF(MIN(IF(Notes<>\"\",IF(COUNTIF($AG$3:$AG125,Notes)=0,ROW(Notes))))=0,\"\",INDEX($Y:$Y,MIN(IF(Notes<>\"\",IF(COUNTIF($AG$3:$AG125,Notes)=0,ROW(Notes))))))","v":""}]
[null,null,null,null,null,null,null,null,null,null,null,null,null,null,null,null,null,null,null,null,null,null,null,null,null,null,null,null,null,null,null,null,{"$f":"IF(MIN(IF(Notes<>\"\",IF(COUNTIF($AG$3:$AG126,Notes)=0,ROW(Notes))))=0,\"\",INDEX($Y:$Y,MIN(IF(Notes<>\"\",IF(COUNTIF($AG$3:$AG126,Notes)=0,ROW(Notes))))))","v":""}]
[null,null,null,null,null,null,null,null,null,null,null,null,null,null,null,null,null,null,null,null,null,null,null,null,null,null,null,null,null,null,null,null,{"$f":"IF(MIN(IF(Notes<>\"\",IF(COUNTIF($AG$3:$AG127,Notes)=0,ROW(Notes))))=0,\"\",INDEX($Y:$Y,MIN(IF(Notes<>\"\",IF(COUNTIF($AG$3:$AG127,Notes)=0,ROW(Notes))))))","v":""}]
[null,null,null,null,null,null,null,null,null,null,null,null,null,null,null,null,null,null,null,null,null,null,null,null,null,null,null,null,null,null,null,null,{"$f":"IF(MIN(IF(Notes<>\"\",IF(COUNTIF($AG$3:$AG128,Notes)=0,ROW(Notes))))=0,\"\",INDEX($Y:$Y,MIN(IF(Notes<>\"\",IF(COUNTIF($AG$3:$AG128,Notes)=0,ROW(Notes))))))","v":""}]
[null,null,null,null,null,null,null,null,null,null,null,null,null,null,null,null,null,null,null,null,null,null,null,null,null,null,null,null,null,null,null,null,{"$f":"IF(MIN(IF(Notes<>\"\",IF(COUNTIF($AG$3:$AG129,Notes)=0,ROW(Notes))))=0,\"\",INDEX($Y:$Y,MIN(IF(Notes<>\"\",IF(COUNTIF($AG$3:$AG129,Notes)=0,ROW(Notes))))))","v":""}]
[null,null,null,null,null,null,null,null,null,null,null,null,null,null,null,null,null,null,null,null,null,null,null,null,null,null,null,null,null,null,null,null,{"$f":"IF(MIN(IF(Notes<>\"\",IF(COUNTIF($AG$3:$AG130,Notes)=0,ROW(Notes))))=0,\"\",INDEX($Y:$Y,MIN(IF(Notes<>\"\",IF(COUNTIF($AG$3:$AG130,Notes)=0,ROW(Notes))))))","v":""}]
[null,null,null,null,null,null,null,null,null,null,null,null,null,null,null,null,null,null,null,null,null,null,null,null,null,null,null,null,null,null,null,null,{"$f":"IF(MIN(IF(Notes<>\"\",IF(COUNTIF($AG$3:$AG131,Notes)=0,ROW(Notes))))=0,\"\",INDEX($Y:$Y,MIN(IF(Notes<>\"\",IF(COUNTIF($AG$3:$AG131,Notes)=0,ROW(Notes))))))","v":""}]
[null,null,null,null,null,null,null,null,null,null,null,null,null,null,null,null,null,null,null,null,null,null,null,null,null,null,null,null,null,null,null,null,{"$f":"IF(MIN(IF(Notes<>\"\",IF(COUNTIF($AG$3:$AG132,Notes)=0,ROW(Notes))))=0,\"\",INDEX($Y:$Y,MIN(IF(Notes<>\"\",IF(COUNTIF($AG$3:$AG132,Notes)=0,ROW(Notes))))))","v":""}]
[null,null,null,null,null,null,null,null,null,null,null,null,null,null,null,null,null,null,null,null,null,null,null,null,null,null,null,null,null,null,null,null,{"$f":"IF(MIN(IF(Notes<>\"\",IF(COUNTIF($AG$3:$AG133,Notes)=0,ROW(Notes))))=0,\"\",INDEX($Y:$Y,MIN(IF(Notes<>\"\",IF(COUNTIF($AG$3:$AG133,Notes)=0,ROW(Notes))))))","v":""}]
[null,null,null,null,null,null,null,null,null,null,null,null,null,null,null,null,null,null,null,null,null,null,null,null,null,null,null,null,null,null,null,null,{"$f":"IF(MIN(IF(Notes<>\"\",IF(COUNTIF($AG$3:$AG134,Notes)=0,ROW(Notes))))=0,\"\",INDEX($Y:$Y,MIN(IF(Notes<>\"\",IF(COUNTIF($AG$3:$AG134,Notes)=0,ROW(Notes))))))","v":""}]
[null,null,null,null,null,null,null,null,null,null,null,null,null,null,null,null,null,null,null,null,null,null,null,null,null,null,null,null,null,null,null,null,{"$f":"IF(MIN(IF(Notes<>\"\",IF(COUNTIF($AG$3:$AG135,Notes)=0,ROW(Notes))))=0,\"\",INDEX($Y:$Y,MIN(IF(Notes<>\"\",IF(COUNTIF($AG$3:$AG135,Notes)=0,ROW(Notes))))))","v":""}]
[null,null,null,null,null,null,null,null,null,null,null,null,null,null,null,null,null,null,null,null,null,null,null,null,null,null,null,null,null,null,null,null,{"$f":"IF(MIN(IF(Notes<>\"\",IF(COUNTIF($AG$3:$AG136,Notes)=0,ROW(Notes))))=0,\"\",INDEX($Y:$Y,MIN(IF(Notes<>\"\",IF(COUNTIF($AG$3:$AG136,Notes)=0,ROW(Notes))))))","v":""}]
[null,null,null,null,null,null,null,null,null,null,null,null,null,null,null,null,null,null,null,null,null,null,null,null,null,null,null,null,null,null,null,null,{"$f":"IF(MIN(IF(Notes<>\"\",IF(COUNTIF($AG$3:$AG137,Notes)=0,ROW(Notes))))=0,\"\",INDEX($Y:$Y,MIN(IF(Notes<>\"\",IF(COUNTIF($AG$3:$AG137,Notes)=0,ROW(Notes))))))","v":""}]
[null,null,null,null,null,null,null,null,null,null,null,null,null,null,null,null,null,null,null,null,null,null,null,null,null,null,null,null,null,null,null,null,{"$f":"IF(MIN(IF(Notes<>\"\",IF(COUNTIF($AG$3:$AG138,Notes)=0,ROW(Notes))))=0,\"\",INDEX($Y:$Y,MIN(IF(Notes<>\"\",IF(COUNTIF($AG$3:$AG138,Notes)=0,ROW(Notes))))))","v":""}]
[null,null,null,null,null,null,null,null,null,null,null,null,null,null,null,null,null,null,null,null,null,null,null,null,null,null,null,null,null,null,null,null,{"$f":"IF(MIN(IF(Notes<>\"\",IF(COUNTIF($AG$3:$AG139,Notes)=0,ROW(Notes))))=0,\"\",INDEX($Y:$Y,MIN(IF(Notes<>\"\",IF(COUNTIF($AG$3:$AG139,Notes)=0,ROW(Notes))))))","v":""}]
[null,null,null,null,null,null,null,null,null,null,null,null,null,null,null,null,null,null,null,null,null,null,null,null,null,null,null,null,null,null,null,null,{"$f":"IF(MIN(IF(Notes<>\"\",IF(COUNTIF($AG$3:$AG140,Notes)=0,ROW(Notes))))=0,\"\",INDEX($Y:$Y,MIN(IF(Notes<>\"\",IF(COUNTIF($AG$3:$AG140,Notes)=0,ROW(Notes))))))","v":""}]
[null,null,null,null,null,null,null,null,null,null,null,null,null,null,null,null,null,null,null,null,null,null,null,null,null,null,null,null,null,null,null,null,{"$f":"IF(MIN(IF(Notes<>\"\",IF(COUNTIF($AG$3:$AG141,Notes)=0,ROW(Notes))))=0,\"\",INDEX($Y:$Y,MIN(IF(Notes<>\"\",IF(COUNTIF($AG$3:$AG141,Notes)=0,ROW(Notes))))))","v":""}]
[null,null,null,null,null,null,null,null,null,null,null,null,null,null,null,null,null,null,null,null,null,null,null,null,null,null,null,null,null,null,null,null,{"$f":"IF(MIN(IF(Notes<>\"\",IF(COUNTIF($AG$3:$AG142,Notes)=0,ROW(Notes))))=0,\"\",INDEX($Y:$Y,MIN(IF(Notes<>\"\",IF(COUNTIF($AG$3:$AG142,Notes)=0,ROW(Notes))))))","v":""}]
[null,null,null,null,null,null,null,null,null,null,null,null,null,null,null,null,null,null,null,null,null,null,null,null,null,null,null,null,null,null,null,null,{"$f":"IF(MIN(IF(Notes<>\"\",IF(COUNTIF($AG$3:$AG143,Notes)=0,ROW(Notes))))=0,\"\",INDEX($Y:$Y,MIN(IF(Notes<>\"\",IF(COUNTIF($AG$3:$AG143,Notes)=0,ROW(Notes))))))","v":""}]
[null,null,null,null,null,null,null,null,null,null,null,null,null,null,null,null,null,null,null,null,null,null,null,null,null,null,null,null,null,null,null,null,{"$f":"IF(MIN(IF(Notes<>\"\",IF(COUNTIF($AG$3:$AG144,Notes)=0,ROW(Notes))))=0,\"\",INDEX($Y:$Y,MIN(IF(Notes<>\"\",IF(COUNTIF($AG$3:$AG144,Notes)=0,ROW(Notes))))))","v":""}]
[null,null,null,null,null,null,null,null,null,null,null,null,null,null,null,null,null,null,null,null,null,null,null,null,null,null,null,null,null,null,null,null,{"$f":"IF(MIN(IF(Notes<>\"\",IF(COUNTIF($AG$3:$AG145,Notes)=0,ROW(Notes))))=0,\"\",INDEX($Y:$Y,MIN(IF(Notes<>\"\",IF(COUNTIF($AG$3:$AG145,Notes)=0,ROW(Notes))))))","v":""}]
[null,null,null,null,null,null,null,null,null,null,null,null,null,null,null,null,null,null,null,null,null,null,null,null,null,null,null,null,null,null,null,null,{"$f":"IF(MIN(IF(Notes<>\"\",IF(COUNTIF($AG$3:$AG146,Notes)=0,ROW(Notes))))=0,\"\",INDEX($Y:$Y,MIN(IF(Notes<>\"\",IF(COUNTIF($AG$3:$AG146,Notes)=0,ROW(Notes))))))","v":""}]
[null,null,null,null,null,null,null,null,null,null,null,null,null,null,null,null,null,null,null,null,null,null,null,null,null,null,null,null,null,null,null,null,{"$f":"IF(MIN(IF(Notes<>\"\",IF(COUNTIF($AG$3:$AG147,Notes)=0,ROW(Notes))))=0,\"\",INDEX($Y:$Y,MIN(IF(Notes<>\"\",IF(COUNTIF($AG$3:$AG147,Notes)=0,ROW(Notes))))))","v":""}]
[null,null,null,null,null,null,null,null,null,null,null,null,null,null,null,null,null,null,null,null,null,null,null,null,null,null,null,null,null,null,null,null,{"$f":"IF(MIN(IF(Notes<>\"\",IF(COUNTIF($AG$3:$AG148,Notes)=0,ROW(Notes))))=0,\"\",INDEX($Y:$Y,MIN(IF(Notes<>\"\",IF(COUNTIF($AG$3:$AG148,Notes)=0,ROW(Notes))))))","v":""}]
[null,null,null,null,null,null,null,null,null,null,null,null,null,null,null,null,null,null,null,null,null,null,null,null,null,null,null,null,null,null,null,null,{"$f":"IF(MIN(IF(Notes<>\"\",IF(COUNTIF($AG$3:$AG149,Notes)=0,ROW(Notes))))=0,\"\",INDEX($Y:$Y,MIN(IF(Notes<>\"\",IF(COUNTIF($AG$3:$AG149,Notes)=0,ROW(Notes))))))","v":""}]
[null,null,null,null,null,null,null,null,null,null,null,null,null,null,null,null,null,null,null,null,null,null,null,null,null,null,null,null,null,null,null,null,{"$f":"IF(MIN(IF(Notes<>\"\",IF(COUNTIF($AG$3:$AG150,Notes)=0,ROW(Notes))))=0,\"\",INDEX($Y:$Y,MIN(IF(Notes<>\"\",IF(COUNTIF($AG$3:$AG150,Notes)=0,ROW(Notes))))))","v":""}]
[null,null,null,null,null,null,null,null,null,null,null,null,null,null,null,null,null,null,null,null,null,null,null,null,null,null,null,null,null,null,null,null,{"$f":"IF(MIN(IF(Notes<>\"\",IF(COUNTIF($AG$3:$AG151,Notes)=0,ROW(Notes))))=0,\"\",INDEX($Y:$Y,MIN(IF(Notes<>\"\",IF(COUNTIF($AG$3:$AG151,Notes)=0,ROW(Notes))))))","v":""}]
[null,null,null,null,null,null,null,null,null,null,null,null,null,null,null,null,null,null,null,null,null,null,null,null,null,null,null,null,null,null,null,null,{"$f":"IF(MIN(IF(Notes<>\"\",IF(COUNTIF($AG$3:$AG152,Notes)=0,ROW(Notes))))=0,\"\",INDEX($Y:$Y,MIN(IF(Notes<>\"\",IF(COUNTIF($AG$3:$AG152,Notes)=0,ROW(Notes))))))","v":""}]
[null,null,null,null,null,null,null,null,null,null,null,null,null,null,null,null,null,null,null,null,null,null,null,null,null,null,null,null,null,null,null,null,{"$f":"IF(MIN(IF(Notes<>\"\",IF(COUNTIF($AG$3:$AG153,Notes)=0,ROW(Notes))))=0,\"\",INDEX($Y:$Y,MIN(IF(Notes<>\"\",IF(COUNTIF($AG$3:$AG153,Notes)=0,ROW(Notes))))))","v":""}]
[null,null,null,null,null,null,null,null,null,null,null,null,null,null,null,null,null,null,null,null,null,null,null,null,null,null,null,null,null,null,null,null,{"$f":"IF(MIN(IF(Notes<>\"\",IF(COUNTIF($AG$3:$AG154,Notes)=0,ROW(Notes))))=0,\"\",INDEX($Y:$Y,MIN(IF(Notes<>\"\",IF(COUNTIF($AG$3:$AG154,Notes)=0,ROW(Notes))))))","v":""}]
[null,null,null,null,null,null,null,null,null,null,null,null,null,null,null,null,null,null,null,null,null,null,null,null,null,null,null,null,null,null,null,null,{"$f":"IF(MIN(IF(Notes<>\"\",IF(COUNTIF($AG$3:$AG155,Notes)=0,ROW(Notes))))=0,\"\",INDEX($Y:$Y,MIN(IF(Notes<>\"\",IF(COUNTIF($AG$3:$AG155,Notes)=0,ROW(Notes))))))","v":""}]
[null,null,null,null,null,null,null,null,null,null,null,null,null,null,null,null,null,null,null,null,null,null,null,null,null,null,null,null,null,null,null,null,{"$f":"IF(MIN(IF(Notes<>\"\",IF(COUNTIF($AG$3:$AG156,Notes)=0,ROW(Notes))))=0,\"\",INDEX($Y:$Y,MIN(IF(Notes<>\"\",IF(COUNTIF($AG$3:$AG156,Notes)=0,ROW(Notes))))))","v":""}]
[null,null,null,null,null,null,null,null,null,null,null,null,null,null,null,null,null,null,null,null,null,null,null,null,null,null,null,null,null,null,null,null,{"$f":"IF(MIN(IF(Notes<>\"\",IF(COUNTIF($AG$3:$AG157,Notes)=0,ROW(Notes))))=0,\"\",INDEX($Y:$Y,MIN(IF(Notes<>\"\",IF(COUNTIF($AG$3:$AG157,Notes)=0,ROW(Notes))))))","v":""}]
[null,null,null,null,null,null,null,null,null,null,null,null,null,null,null,null,null,null,null,null,null,null,null,null,null,null,null,null,null,null,null,null,{"$f":"IF(MIN(IF(Notes<>\"\",IF(COUNTIF($AG$3:$AG158,Notes)=0,ROW(Notes))))=0,\"\",INDEX($Y:$Y,MIN(IF(Notes<>\"\",IF(COUNTIF($AG$3:$AG158,Notes)=0,ROW(Notes))))))","v":""}]
[null,null,null,null,null,null,null,null,null,null,null,null,null,null,null,null,null,null,null,null,null,null,null,null,null,null,null,null,null,null,null,null,{"$f":"IF(MIN(IF(Notes<>\"\",IF(COUNTIF($AG$3:$AG159,Notes)=0,ROW(Notes))))=0,\"\",INDEX($Y:$Y,MIN(IF(Notes<>\"\",IF(COUNTIF($AG$3:$AG159,Notes)=0,ROW(Notes))))))","v":""}]
[null,null,null,null,null,null,null,null,null,null,null,null,null,null,null,null,null,null,null,null,null,null,null,null,null,null,null,null,null,null,null,null,{"$f":"IF(MIN(IF(Notes<>\"\",IF(COUNTIF($AG$3:$AG160,Notes)=0,ROW(Notes))))=0,\"\",INDEX($Y:$Y,MIN(IF(Notes<>\"\",IF(COUNTIF($AG$3:$AG160,Notes)=0,ROW(Notes))))))","v":""}]
[null,null,null,null,null,null,null,null,null,null,null,null,null,null,null,null,null,null,null,null,null,null,null,null,null,null,null,null,null,null,null,null,{"$f":"IF(MIN(IF(Notes<>\"\",IF(COUNTIF($AG$3:$AG161,Notes)=0,ROW(Notes))))=0,\"\",INDEX($Y:$Y,MIN(IF(Notes<>\"\",IF(COUNTIF($AG$3:$AG161,Notes)=0,ROW(Notes))))))","v":""}]
[null,null,null,null,null,null,null,null,null,null,null,null,null,null,null,null,null,null,null,null,null,null,null,null,null,null,null,null,null,null,null,null,{"$f":"IF(MIN(IF(Notes<>\"\",IF(COUNTIF($AG$3:$AG162,Notes)=0,ROW(Notes))))=0,\"\",INDEX($Y:$Y,MIN(IF(Notes<>\"\",IF(COUNTIF($AG$3:$AG162,Notes)=0,ROW(Notes))))))","v":""}]
[null,null,null,null,null,null,null,null,null,null,null,null,null,null,null,null,null,null,null,null,null,null,null,null,null,null,null,null,null,null,null,null,{"$f":"IF(MIN(IF(Notes<>\"\",IF(COUNTIF($AG$3:$AG163,Notes)=0,ROW(Notes))))=0,\"\",INDEX($Y:$Y,MIN(IF(Notes<>\"\",IF(COUNTIF($AG$3:$AG163,Notes)=0,ROW(Notes))))))","v":""}]
[null,null,null,null,null,null,null,null,null,null,null,null,null,null,null,null,null,null,null,null,null,null,null,null,null,null,null,null,null,null,null,null,{"$f":"IF(MIN(IF(Notes<>\"\",IF(COUNTIF($AG$3:$AG164,Notes)=0,ROW(Notes))))=0,\"\",INDEX($Y:$Y,MIN(IF(Notes<>\"\",IF(COUNTIF($AG$3:$AG164,Notes)=0,ROW(Notes))))))","v":""}]
[null,null,null,null,null,null,null,null,null,null,null,null,null,null,null,null,null,null,null,null,null,null,null,null,null,null,null,null,null,null,null,null,{"$f":"IF(MIN(IF(Notes<>\"\",IF(COUNTIF($AG$3:$AG165,Notes)=0,ROW(Notes))))=0,\"\",INDEX($Y:$Y,MIN(IF(Notes<>\"\",IF(COUNTIF($AG$3:$AG165,Notes)=0,ROW(Notes))))))","v":""}]
[null,null,null,null,null,null,null,null,null,null,null,null,null,null,null,null,null,null,null,null,null,null,null,null,null,null,null,null,null,null,null,null,{"$f":"IF(MIN(IF(Notes<>\"\",IF(COUNTIF($AG$3:$AG166,Notes)=0,ROW(Notes))))=0,\"\",INDEX($Y:$Y,MIN(IF(Notes<>\"\",IF(COUNTIF($AG$3:$AG166,Notes)=0,ROW(Notes))))))","v":""}]
[null,null,null,null,null,null,null,null,null,null,null,null,null,null,null,null,null,null,null,null,null,null,null,null,null,null,null,null,null,null,null,null,{"$f":"IF(MIN(IF(Notes<>\"\",IF(COUNTIF($AG$3:$AG167,Notes)=0,ROW(Notes))))=0,\"\",INDEX($Y:$Y,MIN(IF(Notes<>\"\",IF(COUNTIF($AG$3:$AG167,Notes)=0,ROW(Notes))))))","v":""}]
[null,null,null,null,null,null,null,null,null,null,null,null,null,null,null,null,null,null,null,null,null,null,null,null,null,null,null,null,null,null,null,null,{"$f":"IF(MIN(IF(Notes<>\"\",IF(COUNTIF($AG$3:$AG168,Notes)=0,ROW(Notes))))=0,\"\",INDEX($Y:$Y,MIN(IF(Notes<>\"\",IF(COUNTIF($AG$3:$AG168,Notes)=0,ROW(Notes))))))","v":""}]
[null,null,null,null,null,null,null,null,null,null,null,null,null,null,null,null,null,null,null,null,null,null,null,null,null,null,null,null,null,null,null,null,{"$f":"IF(MIN(IF(Notes<>\"\",IF(COUNTIF($AG$3:$AG169,Notes)=0,ROW(Notes))))=0,\"\",INDEX($Y:$Y,MIN(IF(Notes<>\"\",IF(COUNTIF($AG$3:$AG169,Notes)=0,ROW(Notes))))))","v":""}]
[null,null,null,null,null,null,null,null,null,null,null,null,null,null,null,null,null,null,null,null,null,null,null,null,null,null,null,null,null,null,null,null,{"$f":"IF(MIN(IF(Notes<>\"\",IF(COUNTIF($AG$3:$AG170,Notes)=0,ROW(Notes))))=0,\"\",INDEX($Y:$Y,MIN(IF(Notes<>\"\",IF(COUNTIF($AG$3:$AG170,Notes)=0,ROW(Notes))))))","v":""}]
[null,null,null,null,null,null,null,null,null,null,null,null,null,null,null,null,null,null,null,null,null,null,null,null,null,null,null,null,null,null,null,null,{"$f":"IF(MIN(IF(Notes<>\"\",IF(COUNTIF($AG$3:$AG171,Notes)=0,ROW(Notes))))=0,\"\",INDEX($Y:$Y,MIN(IF(Notes<>\"\",IF(COUNTIF($AG$3:$AG171,Notes)=0,ROW(Notes))))))","v":""}]
[null,null,null,null,null,null,null,null,null,null,null,null,null,null,null,null,null,null,null,null,null,null,null,null,null,null,null,null,null,null,null,null,{"$f":"IF(MIN(IF(Notes<>\"\",IF(COUNTIF($AG$3:$AG172,Notes)=0,ROW(Notes))))=0,\"\",INDEX($Y:$Y,MIN(IF(Notes<>\"\",IF(COUNTIF($AG$3:$AG172,Notes)=0,ROW(Notes))))))","v":""}]
[null,null,null,null,null,null,null,null,null,null,null,null,null,null,null,null,null,null,null,null,null,null,null,null,null,null,null,null,null,null,null,null,{"$f":"IF(MIN(IF(Notes<>\"\",IF(COUNTIF($AG$3:$AG173,Notes)=0,ROW(Notes))))=0,\"\",INDEX($Y:$Y,MIN(IF(Notes<>\"\",IF(COUNTIF($AG$3:$AG173,Notes)=0,ROW(Notes))))))","v":""}]
[null,null,null,null,null,null,null,null,null,null,null,null,null,null,null,null,null,null,null,null,null,null,null,null,null,null,null,null,null,null,null,null,{"$f":"IF(MIN(IF(Notes<>\"\",IF(COUNTIF($AG$3:$AG174,Notes)=0,ROW(Notes))))=0,\"\",INDEX($Y:$Y,MIN(IF(Notes<>\"\",IF(COUNTIF($AG$3:$AG174,Notes)=0,ROW(Notes))))))","v":""}]
[null,null,null,null,null,null,null,null,null,null,null,null,null,null,null,null,null,null,null,null,null,null,null,null,null,null,null,null,null,null,null,null,{"$f":"IF(MIN(IF(Notes<>\"\",IF(COUNTIF($AG$3:$AG175,Notes)=0,ROW(Notes))))=0,\"\",INDEX($Y:$Y,MIN(IF(Notes<>\"\",IF(COUNTIF($AG$3:$AG175,Notes)=0,ROW(Notes))))))","v":""}]
[null,null,null,null,null,null,null,null,null,null,null,null,null,null,null,null,null,null,null,null,null,null,null,null,null,null,null,null,null,null,null,null,{"$f":"IF(MIN(IF(Notes<>\"\",IF(COUNTIF($AG$3:$AG176,Notes)=0,ROW(Notes))))=0,\"\",INDEX($Y:$Y,MIN(IF(Notes<>\"\",IF(COUNTIF($AG$3:$AG176,Notes)=0,ROW(Notes))))))","v":""}]
[null,null,null,null,null,null,null,null,null,null,null,null,null,null,null,null,null,null,null,null,null,null,null,null,null,null,null,null,null,null,null,null,{"$f":"IF(MIN(IF(Notes<>\"\",IF(COUNTIF($AG$3:$AG177,Notes)=0,ROW(Notes))))=0,\"\",INDEX($Y:$Y,MIN(IF(Notes<>\"\",IF(COUNTIF($AG$3:$AG177,Notes)=0,ROW(Notes))))))","v":""}]
[null,null,null,null,null,null,null,null,null,null,null,null,null,null,null,null,null,null,null,null,null,null,null,null,null,null,null,null,null,null,null,null,{"$f":"IF(MIN(IF(Notes<>\"\",IF(COUNTIF($AG$3:$AG178,Notes)=0,ROW(Notes))))=0,\"\",INDEX($Y:$Y,MIN(IF(Notes<>\"\",IF(COUNTIF($AG$3:$AG178,Notes)=0,ROW(Notes))))))","v":""}]
[null,null,null,null,null,null,null,null,null,null,null,null,null,null,null,null,null,null,null,null,null,null,null,null,null,null,null,null,null,null,null,null,{"$f":"IF(MIN(IF(Notes<>\"\",IF(COUNTIF($AG$3:$AG179,Notes)=0,ROW(Notes))))=0,\"\",INDEX($Y:$Y,MIN(IF(Notes<>\"\",IF(COUNTIF($AG$3:$AG179,Notes)=0,ROW(Notes))))))","v":""}]
[null,null,null,null,null,null,null,null,null,null,null,null,null,null,null,null,null,null,null,null,null,null,null,null,null,null,null,null,null,null,null,null,{"$f":"IF(MIN(IF(Notes<>\"\",IF(COUNTIF($AG$3:$AG180,Notes)=0,ROW(Notes))))=0,\"\",INDEX($Y:$Y,MIN(IF(Notes<>\"\",IF(COUNTIF($AG$3:$AG180,Notes)=0,ROW(Notes))))))","v":""}]
[null,null,null,null,null,null,null,null,null,null,null,null,null,null,null,null,null,null,null,null,null,null,null,null,null,null,null,null,null,null,null,null,{"$f":"IF(MIN(IF(Notes<>\"\",IF(COUNTIF($AG$3:$AG181,Notes)=0,ROW(Notes))))=0,\"\",INDEX($Y:$Y,MIN(IF(Notes<>\"\",IF(COUNTIF($AG$3:$AG181,Notes)=0,ROW(Notes))))))","v":""}]
[null,null,null,null,null,null,null,null,null,null,null,null,null,null,null,null,null,null,null,null,null,null,null,null,null,null,null,null,null,null,null,null,{"$f":"IF(MIN(IF(Notes<>\"\",IF(COUNTIF($AG$3:$AG182,Notes)=0,ROW(Notes))))=0,\"\",INDEX($Y:$Y,MIN(IF(Notes<>\"\",IF(COUNTIF($AG$3:$AG182,Notes)=0,ROW(Notes))))))","v":""}]
[null,null,null,null,null,null,null,null,null,null,null,null,null,null,null,null,null,null,null,null,null,null,null,null,null,null,null,null,null,null,null,null,{"$f":"IF(MIN(IF(Notes<>\"\",IF(COUNTIF($AG$3:$AG183,Notes)=0,ROW(Notes))))=0,\"\",INDEX($Y:$Y,MIN(IF(Notes<>\"\",IF(COUNTIF($AG$3:$AG183,Notes)=0,ROW(Notes))))))","v":""}]
[null,null,null,null,null,null,null,null,null,null,null,null,null,null,null,null,null,null,null,null,null,null,null,null,null,null,null,null,null,null,null,null,{"$f":"IF(MIN(IF(Notes<>\"\",IF(COUNTIF($AG$3:$AG184,Notes)=0,ROW(Notes))))=0,\"\",INDEX($Y:$Y,MIN(IF(Notes<>\"\",IF(COUNTIF($AG$3:$AG184,Notes)=0,ROW(Notes))))))","v":""}]
[null,null,null,null,null,null,null,null,null,null,null,null,null,null,null,null,null,null,null,null,null,null,null,null,null,null,null,null,null,null,null,null,{"$f":"IF(MIN(IF(Notes<>\"\",IF(COUNTIF($AG$3:$AG185,Notes)=0,ROW(Notes))))=0,\"\",INDEX($Y:$Y,MIN(IF(Notes<>\"\",IF(COUNTIF($AG$3:$AG185,Notes)=0,ROW(Notes))))))","v":""}]
[null,null,null,null,null,null,null,null,null,null,null,null,null,null,null,null,null,null,null,null,null,null,null,null,null,null,null,null,null,null,null,null,{"$f":"IF(MIN(IF(Notes<>\"\",IF(COUNTIF($AG$3:$AG186,Notes)=0,ROW(Notes))))=0,\"\",INDEX($Y:$Y,MIN(IF(Notes<>\"\",IF(COUNTIF($AG$3:$AG186,Notes)=0,ROW(Notes))))))","v":""}]
[null,null,null,null,null,null,null,null,null,null,null,null,null,null,null,null,null,null,null,null,null,null,null,null,null,null,null,null,null,null,null,null,{"$f":"IF(MIN(IF(Notes<>\"\",IF(COUNTIF($AG$3:$AG187,Notes)=0,ROW(Notes))))=0,\"\",INDEX($Y:$Y,MIN(IF(Notes<>\"\",IF(COUNTIF($AG$3:$AG187,Notes)=0,ROW(Notes))))))","v":""}]
[null,null,null,null,null,null,null,null,null,null,null,null,null,null,null,null,null,null,null,null,null,null,null,null,null,null,null,null,null,null,null,null,{"$f":"IF(MIN(IF(Notes<>\"\",IF(COUNTIF($AG$3:$AG188,Notes)=0,ROW(Notes))))=0,\"\",INDEX($Y:$Y,MIN(IF(Notes<>\"\",IF(COUNTIF($AG$3:$AG188,Notes)=0,ROW(Notes))))))","v":""}]
[null,null,null,null,null,null,null,null,null,null,null,null,null,null,null,null,null,null,null,null,null,null,null,null,null,null,null,null,null,null,null,null,{"$f":"IF(MIN(IF(Notes<>\"\",IF(COUNTIF($AG$3:$AG189,Notes)=0,ROW(Notes))))=0,\"\",INDEX($Y:$Y,MIN(IF(Notes<>\"\",IF(COUNTIF($AG$3:$AG189,Notes)=0,ROW(Notes))))))","v":""}]
[null,null,null,null,null,null,null,null,null,null,null,null,null,null,null,null,null,null,null,null,null,null,null,null,null,null,null,null,null,null,null,null,{"$f":"IF(MIN(IF(Notes<>\"\",IF(COUNTIF($AG$3:$AG190,Notes)=0,ROW(Notes))))=0,\"\",INDEX($Y:$Y,MIN(IF(Notes<>\"\",IF(COUNTIF($AG$3:$AG190,Notes)=0,ROW(Notes))))))","v":""}]
[null,null,null,null,null,null,null,null,null,null,null,null,null,null,null,null,null,null,null,null,null,null,null,null,null,null,null,null,null,null,null,null,{"$f":"IF(MIN(IF(Notes<>\"\",IF(COUNTIF($AG$3:$AG191,Notes)=0,ROW(Notes))))=0,\"\",INDEX($Y:$Y,MIN(IF(Notes<>\"\",IF(COUNTIF($AG$3:$AG191,Notes)=0,ROW(Notes))))))","v":""}]
[null,null,null,null,null,null,null,null,null,null,null,null,null,null,null,null,null,null,null,null,null,null,null,null,null,null,null,null,null,null,null,null,{"$f":"IF(MIN(IF(Notes<>\"\",IF(COUNTIF($AG$3:$AG192,Notes)=0,ROW(Notes))))=0,\"\",INDEX($Y:$Y,MIN(IF(Notes<>\"\",IF(COUNTIF($AG$3:$AG192,Notes)=0,ROW(Notes))))))","v":""}]
[null,null,null,null,null,null,null,null,null,null,null,null,null,null,null,null,null,null,null,null,null,null,null,null,null,null,null,null,null,null,null,null,{"$f":"IF(MIN(IF(Notes<>\"\",IF(COUNTIF($AG$3:$AG193,Notes)=0,ROW(Notes))))=0,\"\",INDEX($Y:$Y,MIN(IF(Notes<>\"\",IF(COUNTIF($AG$3:$AG193,Notes)=0,ROW(Notes))))))","v":""}]
[null,null,null,null,null,null,null,null,null,null,null,null,null,null,null,null,null,null,null,null,null,null,null,null,null,null,null,null,null,null,null,null,{"$f":"IF(MIN(IF(Notes<>\"\",IF(COUNTIF($AG$3:$AG194,Notes)=0,ROW(Notes))))=0,\"\",INDEX($Y:$Y,MIN(IF(Notes<>\"\",IF(COUNTIF($AG$3:$AG194,Notes)=0,ROW(Notes))))))","v":""}]
[null,null,null,null,null,null,null,null,null,null,null,null,null,null,null,null,null,null,null,null,null,null,null,null,null,null,null,null,null,null,null,null,{"$f":"IF(MIN(IF(Notes<>\"\",IF(COUNTIF($AG$3:$AG195,Notes)=0,ROW(Notes))))=0,\"\",INDEX($Y:$Y,MIN(IF(Notes<>\"\",IF(COUNTIF($AG$3:$AG195,Notes)=0,ROW(Notes))))))","v":""}]
[null,null,null,null,null,null,null,null,null,null,null,null,null,null,null,null,null,null,null,null,null,null,null,null,null,null,null,null,null,null,null,null,{"$f":"IF(MIN(IF(Notes<>\"\",IF(COUNTIF($AG$3:$AG196,Notes)=0,ROW(Notes))))=0,\"\",INDEX($Y:$Y,MIN(IF(Notes<>\"\",IF(COUNTIF($AG$3:$AG196,Notes)=0,ROW(Notes))))))","v":""}]
[null,null,null,null,null,null,null,null,null,null,null,null,null,null,null,null,null,null,null,null,null,null,null,null,null,null,null,null,null,null,null,null,{"$f":"IF(MIN(IF(Notes<>\"\",IF(COUNTIF($AG$3:$AG197,Notes)=0,ROW(Notes))))=0,\"\",INDEX($Y:$Y,MIN(IF(Notes<>\"\",IF(COUNTIF($AG$3:$AG197,Notes)=0,ROW(Notes))))))","v":""}]
[null,null,null,null,null,null,null,null,null,null,null,null,null,null,null,null,null,null,null,null,null,null,null,null,null,null,null,null,null,null,null,null,{"$f":"IF(MIN(IF(Notes<>\"\",IF(COUNTIF($AG$3:$AG198,Notes)=0,ROW(Notes))))=0,\"\",INDEX($Y:$Y,MIN(IF(Notes<>\"\",IF(COUNTIF($AG$3:$AG198,Notes)=0,ROW(Notes))))))","v":""}]
[null,null,null,null,null,null,null,null,null,null,null,null,null,null,null,null,null,null,null,null,null,null,null,null,null,null,null,null,null,null,null,null,{"$f":"IF(MIN(IF(Notes<>\"\",IF(COUNTIF($AG$3:$AG199,Notes)=0,ROW(Notes))))=0,\"\",INDEX($Y:$Y,MIN(IF(Notes<>\"\",IF(COUNTIF($AG$3:$AG199,Notes)=0,ROW(Notes))))))","v":""}]
[null,null,null,null,null,null,null,null,null,null,null,null,null,null,null,null,null,null,null,null,null,null,null,null,null,null,null,null,null,null,null,null,{"$f":"IF(MIN(IF(Notes<>\"\",IF(COUNTIF($AG$3:$AG200,Notes)=0,ROW(Notes))))=0,\"\",INDEX($Y:$Y,MIN(IF(Notes<>\"\",IF(COUNTIF($AG$3:$AG200,Notes)=0,ROW(Notes))))))","v":""}]
[null,null,null,null,null,null,null,null,null,null,null,null,null,null,null,null,null,null,null,null,null,null,null,null,null,null,null,null,null,null,null,null,{"$f":"IF(MIN(IF(Notes<>\"\",IF(COUNTIF($AG$3:$AG201,Notes)=0,ROW(Notes))))=0,\"\",INDEX($Y:$Y,MIN(IF(Notes<>\"\",IF(COUNTIF($AG$3:$AG201,Notes)=0,ROW(Notes))))))","v":""}]
[null,null,null,null,null,null,null,null,null,null,null,null,null,null,null,null,null,null,null,null,null,null,null,null,null,null,null,null,null,null,null,null,{"$f":"IF(MIN(IF(Notes<>\"\",IF(COUNTIF($AG$3:$AG202,Notes)=0,ROW(Notes))))=0,\"\",INDEX($Y:$Y,MIN(IF(Notes<>\"\",IF(COUNTIF($AG$3:$AG202,Notes)=0,ROW(Notes))))))","v":""}]
[null,null,null,null,null,null,null,null,null,null,null,null,null,null,null,null,null,null,null,null,null,null,null,null,null,null,null,null,null,null,null,null,{"$f":"IF(MIN(IF(Notes<>\"\",IF(COUNTIF($AG$3:$AG203,Notes)=0,ROW(Notes))))=0,\"\",INDEX($Y:$Y,MIN(IF(Notes<>\"\",IF(COUNTIF($AG$3:$AG203,Notes)=0,ROW(Notes))))))","v":""}]
[null,null,null,null,null,null,null,null,null,null,null,null,null,null,null,null,null,null,null,null,null,null,null,null,null,null,null,null,null,null,null,null,{"$f":"IF(MIN(IF(Notes<>\"\",IF(COUNTIF($AG$3:$AG204,Notes)=0,ROW(Notes))))=0,\"\",INDEX($Y:$Y,MIN(IF(Notes<>\"\",IF(COUNTIF($AG$3:$AG204,Notes)=0,ROW(Notes))))))","v":""}]
[null,null,null,null,null,null,null,null,null,null,null,null,null,null,null,null,null,null,null,null,null,null,null,null,null,null,null,null,null,null,null,null,{"$f":"IF(MIN(IF(Notes<>\"\",IF(COUNTIF($AG$3:$AG205,Notes)=0,ROW(Notes))))=0,\"\",INDEX($Y:$Y,MIN(IF(Notes<>\"\",IF(COUNTIF($AG$3:$AG205,Notes)=0,ROW(Notes))))))","v":""}]
[null,null,null,null,null,null,null,null,null,null,null,null,null,null,null,null,null,null,null,null,null,null,null,null,null,null,null,null,null,null,null,null,{"$f":"IF(MIN(IF(Notes<>\"\",IF(COUNTIF($AG$3:$AG206,Notes)=0,ROW(Notes))))=0,\"\",INDEX($Y:$Y,MIN(IF(Notes<>\"\",IF(COUNTIF($AG$3:$AG206,Notes)=0,ROW(Notes))))))","v":""}]
[null,null,null,null,null,null,null,null,null,null,null,null,null,null,null,null,null,null,null,null,null,null,null,null,null,null,null,null,null,null,null,null,{"$f":"IF(MIN(IF(Notes<>\"\",IF(COUNTIF($AG$3:$AG207,Notes)=0,ROW(Notes))))=0,\"\",INDEX($Y:$Y,MIN(IF(Notes<>\"\",IF(COUNTIF($AG$3:$AG207,Notes)=0,ROW(Notes))))))","v":""}]
[null,null,null,null,null,null,null,null,null,null,null,null,null,null,null,null,null,null,null,null,null,null,null,null,null,null,null,null,null,null,null,null,{"$f":"IF(MIN(IF(Notes<>\"\",IF(COUNTIF($AG$3:$AG208,Notes)=0,ROW(Notes))))=0,\"\",INDEX($Y:$Y,MIN(IF(Notes<>\"\",IF(COUNTIF($AG$3:$AG208,Notes)=0,ROW(Notes))))))","v":""}]
[null,null,null,null,null,null,null,null,null,null,null,null,null,null,null,null,null,null,null,null,null,null,null,null,null,null,null,null,null,null,null,null,{"$f":"IF(MIN(IF(Notes<>\"\",IF(COUNTIF($AG$3:$AG209,Notes)=0,ROW(Notes))))=0,\"\",INDEX($Y:$Y,MIN(IF(Notes<>\"\",IF(COUNTIF($AG$3:$AG209,Notes)=0,ROW(Notes))))))","v":""}]
[null,null,null,null,null,null,null,null,null,null,null,null,null,null,null,null,null,null,null,null,null,null,null,null,null,null,null,null,null,null,null,null,{"$f":"IF(MIN(IF(Notes<>\"\",IF(COUNTIF($AG$3:$AG210,Notes)=0,ROW(Notes))))=0,\"\",INDEX($Y:$Y,MIN(IF(Notes<>\"\",IF(COUNTIF($AG$3:$AG210,Notes)=0,ROW(Notes))))))","v":""}]
[null,null,null,null,null,null,null,null,null,null,null,null,null,null,null,null,null,null,null,null,null,null,null,null,null,null,null,null,null,null,null,null,{"$f":"IF(MIN(IF(Notes<>\"\",IF(COUNTIF($AG$3:$AG211,Notes)=0,ROW(Notes))))=0,\"\",INDEX($Y:$Y,MIN(IF(Notes<>\"\",IF(COUNTIF($AG$3:$AG211,Notes)=0,ROW(Notes))))))","v":""}]
[null,null,null,null,null,null,null,null,null,null,null,null,null,null,null,null,null,null,null,null,null,null,null,null,null,null,null,null,null,null,null,null,{"$f":"IF(MIN(IF(Notes<>\"\",IF(COUNTIF($AG$3:$AG212,Notes)=0,ROW(Notes))))=0,\"\",INDEX($Y:$Y,MIN(IF(Notes<>\"\",IF(COUNTIF($AG$3:$AG212,Notes)=0,ROW(Notes))))))","v":""}]
[null,null,null,null,null,null,null,null,null,null,null,null,null,null,null,null,null,null,null,null,null,null,null,null,null,null,null,null,null,null,null,null,{"$f":"IF(MIN(IF(Notes<>\"\",IF(COUNTIF($AG$3:$AG213,Notes)=0,ROW(Notes))))=0,\"\",INDEX($Y:$Y,MIN(IF(Notes<>\"\",IF(COUNTIF($AG$3:$AG213,Notes)=0,ROW(Notes))))))","v":""}]
[null,null,null,null,null,null,null,null,null,null,null,null,null,null,null,null,null,null,null,null,null,null,null,null,null,null,null,null,null,null,null,null,{"$f":"IF(MIN(IF(Notes<>\"\",IF(COUNTIF($AG$3:$AG214,Notes)=0,ROW(Notes))))=0,\"\",INDEX($Y:$Y,MIN(IF(Notes<>\"\",IF(COUNTIF($AG$3:$AG214,Notes)=0,ROW(Notes))))))","v":""}]
[null,null,null,null,null,null,null,null,null,null,null,null,null,null,null,null,null,null,null,null,null,null,null,null,null,null,null,null,null,null,null,null,{"$f":"IF(MIN(IF(Notes<>\"\",IF(COUNTIF($AG$3:$AG215,Notes)=0,ROW(Notes))))=0,\"\",INDEX($Y:$Y,MIN(IF(Notes<>\"\",IF(COUNTIF($AG$3:$AG215,Notes)=0,ROW(Notes))))))","v":""}]
[null,null,null,null,null,null,null,null,null,null,null,null,null,null,null,null,null,null,null,null,null,null,null,null,null,null,null,null,null,null,null,null,{"$f":"IF(MIN(IF(Notes<>\"\",IF(COUNTIF($AG$3:$AG216,Notes)=0,ROW(Notes))))=0,\"\",INDEX($Y:$Y,MIN(IF(Notes<>\"\",IF(COUNTIF($AG$3:$AG216,Notes)=0,ROW(Notes))))))","v":""}]
[null,null,null,null,null,null,null,null,null,null,null,null,null,null,null,null,null,null,null,null,null,null,null,null,null,null,null,null,null,null,null,null,{"$f":"IF(MIN(IF(Notes<>\"\",IF(COUNTIF($AG$3:$AG217,Notes)=0,ROW(Notes))))=0,\"\",INDEX($Y:$Y,MIN(IF(Notes<>\"\",IF(COUNTIF($AG$3:$AG217,Notes)=0,ROW(Notes))))))","v":""}]
[null,null,null,null,null,null,null,null,null,null,null,null,null,null,null,null,null,null,null,null,null,null,null,null,null,null,null,null,null,null,null,null,{"$f":"IF(MIN(IF(Notes<>\"\",IF(COUNTIF($AG$3:$AG218,Notes)=0,ROW(Notes))))=0,\"\",INDEX($Y:$Y,MIN(IF(Notes<>\"\",IF(COUNTIF($AG$3:$AG218,Notes)=0,ROW(Notes))))))","v":""}]
[null,null,null,null,null,null,null,null,null,null,null,null,null,null,null,null,null,null,null,null,null,null,null,null,null,null,null,null,null,null,null,null,{"$f":"IF(MIN(IF(Notes<>\"\",IF(COUNTIF($AG$3:$AG219,Notes)=0,ROW(Notes))))=0,\"\",INDEX($Y:$Y,MIN(IF(Notes<>\"\",IF(COUNTIF($AG$3:$AG219,Notes)=0,ROW(Notes))))))","v":""}]
[null,null,null,null,null,null,null,null,null,null,null,null,null,null,null,null,null,null,null,null,null,null,null,null,null,null,null,null,null,null,null,null,{"$f":"IF(MIN(IF(Notes<>\"\",IF(COUNTIF($AG$3:$AG220,Notes)=0,ROW(Notes))))=0,\"\",INDEX($Y:$Y,MIN(IF(Notes<>\"\",IF(COUNTIF($AG$3:$AG220,Notes)=0,ROW(Notes))))))","v":""}]
[null,null,null,null,null,null,null,null,null,null,null,null,null,null,null,null,null,null,null,null,null,null,null,null,null,null,null,null,null,null,null,null,{"$f":"IF(MIN(IF(Notes<>\"\",IF(COUNTIF($AG$3:$AG221,Notes)=0,ROW(Notes))))=0,\"\",INDEX($Y:$Y,MIN(IF(Notes<>\"\",IF(COUNTIF($AG$3:$AG221,Notes)=0,ROW(Notes))))))","v":""}]
[null,null,null,null,null,null,null,null,null,null,null,null,null,null,null,null,null,null,null,null,null,null,null,null,null,null,null,null,null,null,null,null,{"$f":"IF(MIN(IF(Notes<>\"\",IF(COUNTIF($AG$3:$AG222,Notes)=0,ROW(Notes))))=0,\"\",INDEX($Y:$Y,MIN(IF(Notes<>\"\",IF(COUNTIF($AG$3:$AG222,Notes)=0,ROW(Notes))))))","v":""}]
[null,null,null,null,null,null,null,null,null,null,null,null,null,null,null,null,null,null,null,null,null,null,null,null,null,null,null,null,null,null,null,null,{"$f":"IF(MIN(IF(Notes<>\"\",IF(COUNTIF($AG$3:$AG223,Notes)=0,ROW(Notes))))=0,\"\",INDEX($Y:$Y,MIN(IF(Notes<>\"\",IF(COUNTIF($AG$3:$AG223,Notes)=0,ROW(Notes))))))","v":""}]
[null,null,null,null,null,null,null,null,null,null,null,null,null,null,null,null,null,null,null,null,null,null,null,null,null,null,null,null,null,null,null,null,{"$f":"IF(MIN(IF(Notes<>\"\",IF(COUNTIF($AG$3:$AG224,Notes)=0,ROW(Notes))))=0,\"\",INDEX($Y:$Y,MIN(IF(Notes<>\"\",IF(COUNTIF($AG$3:$AG224,Notes)=0,ROW(Notes))))))","v":""}]
[null,null,null,null,null,null,null,null,null,null,null,null,null,null,null,null,null,null,null,null,null,null,null,null,null,null,null,null,null,null,null,null,{"$f":"IF(MIN(IF(Notes<>\"\",IF(COUNTIF($AG$3:$AG225,Notes)=0,ROW(Notes))))=0,\"\",INDEX($Y:$Y,MIN(IF(Notes<>\"\",IF(COUNTIF($AG$3:$AG225,Notes)=0,ROW(Notes))))))","v":""}]
[null,null,null,null,null,null,null,null,null,null,null,null,null,null,null,null,null,null,null,null,null,null,null,null,null,null,null,null,null,null,null,null,{"$f":"IF(MIN(IF(Notes<>\"\",IF(COUNTIF($AG$3:$AG226,Notes)=0,ROW(Notes))))=0,\"\",INDEX($Y:$Y,MIN(IF(Notes<>\"\",IF(COUNTIF($AG$3:$AG226,Notes)=0,ROW(Notes))))))","v":""}]
[null,null,null,null,null,null,null,null,null,null,null,null,null,null,null,null,null,null,null,null,null,null,null,null,null,null,null,null,null,null,null,null,{"$f":"IF(MIN(IF(Notes<>\"\",IF(COUNTIF($AG$3:$AG227,Notes)=0,ROW(Notes))))=0,\"\",INDEX($Y:$Y,MIN(IF(Notes<>\"\",IF(COUNTIF($AG$3:$AG227,Notes)=0,ROW(Notes))))))","v":""}]
[null,null,null,null,null,null,null,null,null,null,null,null,null,null,null,null,null,null,null,null,null,null,null,null,null,null,null,null,null,null,null,null,{"$f":"IF(MIN(IF(Notes<>\"\",IF(COUNTIF($AG$3:$AG228,Notes)=0,ROW(Notes))))=0,\"\",INDEX($Y:$Y,MIN(IF(Notes<>\"\",IF(COUNTIF($AG$3:$AG228,Notes)=0,ROW(Notes))))))","v":""}]
[null,null,null,null,null,null,null,null,null,null,null,null,null,null,null,null,null,null,null,null,null,null,null,null,null,null,null,null,null,null,null,null,{"$f":"IF(MIN(IF(Notes<>\"\",IF(COUNTIF($AG$3:$AG229,Notes)=0,ROW(Notes))))=0,\"\",INDEX($Y:$Y,MIN(IF(Notes<>\"\",IF(COUNTIF($AG$3:$AG229,Notes)=0,ROW(Notes))))))","v":""}]
[null,null,null,null,null,null,null,null,null,null,null,null,null,null,null,null,null,null,null,null,null,null,null,null,null,null,null,null,null,null,null,null,{"$f":"IF(MIN(IF(Notes<>\"\",IF(COUNTIF($AG$3:$AG230,Notes)=0,ROW(Notes))))=0,\"\",INDEX($Y:$Y,MIN(IF(Notes<>\"\",IF(COUNTIF($AG$3:$AG230,Notes)=0,ROW(Notes))))))","v":""}]
[null,null,null,null,null,null,null,null,null,null,null,null,null,null,null,null,null,null,null,null,null,null,null,null,null,null,null,null,null,null,null,null,{"$f":"IF(MIN(IF(Notes<>\"\",IF(COUNTIF($AG$3:$AG231,Notes)=0,ROW(Notes))))=0,\"\",INDEX($Y:$Y,MIN(IF(Notes<>\"\",IF(COUNTIF($AG$3:$AG231,Notes)=0,ROW(Notes))))))","v":""}]
[null,null,null,null,null,null,null,null,null,null,null,null,null,null,null,null,null,null,null,null,null,null,null,null,null,null,null,null,null,null,null,null,{"$f":"IF(MIN(IF(Notes<>\"\",IF(COUNTIF($AG$3:$AG232,Notes)=0,ROW(Notes))))=0,\"\",INDEX($Y:$Y,MIN(IF(Notes<>\"\",IF(COUNTIF($AG$3:$AG232,Notes)=0,ROW(Notes))))))","v":""}]
[null,null,null,null,null,null,null,null,null,null,null,null,null,null,null,null,null,null,null,null,null,null,null,null,null,null,null,null,null,null,null,null,{"$f":"IF(MIN(IF(Notes<>\"\",IF(COUNTIF($AG$3:$AG233,Notes)=0,ROW(Notes))))=0,\"\",INDEX($Y:$Y,MIN(IF(Notes<>\"\",IF(COUNTIF($AG$3:$AG233,Notes)=0,ROW(Notes))))))","v":""}]
[null,null,null,null,null,null,null,null,null,null,null,null,null,null,null,null,null,null,null,null,null,null,null,null,null,null,null,null,null,null,null,null,{"$f":"IF(MIN(IF(Notes<>\"\",IF(COUNTIF($AG$3:$AG234,Notes)=0,ROW(Notes))))=0,\"\",INDEX($Y:$Y,MIN(IF(Notes<>\"\",IF(COUNTIF($AG$3:$AG234,Notes)=0,ROW(Notes))))))","v":""}]
[null,null,null,null,null,null,null,null,null,null,null,null,null,null,null,null,null,null,null,null,null,null,null,null,null,null,null,null,null,null,null,null,{"$f":"IF(MIN(IF(Notes<>\"\",IF(COUNTIF($AG$3:$AG235,Notes)=0,ROW(Notes))))=0,\"\",INDEX($Y:$Y,MIN(IF(Notes<>\"\",IF(COUNTIF($AG$3:$AG235,Notes)=0,ROW(Notes))))))","v":""}]
[null,null,null,null,null,null,null,null,null,null,null,null,null,null,null,null,null,null,null,null,null,null,null,null,null,null,null,null,null,null,null,null,{"$f":"IF(MIN(IF(Notes<>\"\",IF(COUNTIF($AG$3:$AG236,Notes)=0,ROW(Notes))))=0,\"\",INDEX($Y:$Y,MIN(IF(Notes<>\"\",IF(COUNTIF($AG$3:$AG236,Notes)=0,ROW(Notes))))))","v":""}]
[null,null,null,null,null,null,null,null,null,null,null,null,null,null,null,null,null,null,null,null,null,null,null,null,null,null,null,null,null,null,null,null,{"$f":"IF(MIN(IF(Notes<>\"\",IF(COUNTIF($AG$3:$AG237,Notes)=0,ROW(Notes))))=0,\"\",INDEX($Y:$Y,MIN(IF(Notes<>\"\",IF(COUNTIF($AG$3:$AG237,Notes)=0,ROW(Notes))))))","v":""}]
[null,null,null,null,null,null,null,null,null,null,null,null,null,null,null,null,null,null,null,null,null,null,null,null,null,null,null,null,null,null,null,null,{"$f":"IF(MIN(IF(Notes<>\"\",IF(COUNTIF($AG$3:$AG238,Notes)=0,ROW(Notes))))=0,\"\",INDEX($Y:$Y,MIN(IF(Notes<>\"\",IF(COUNTIF($AG$3:$AG238,Notes)=0,ROW(Notes))))))","v":""}]
[null,null,null,null,null,null,null,null,null,null,null,null,null,null,null,null,null,null,null,null,null,null,null,null,null,null,null,null,null,null,null,null,{"$f":"IF(MIN(IF(Notes<>\"\",IF(COUNTIF($AG$3:$AG239,Notes)=0,ROW(Notes))))=0,\"\",INDEX($Y:$Y,MIN(IF(Notes<>\"\",IF(COUNTIF($AG$3:$AG239,Notes)=0,ROW(Notes))))))","v":""}]
[null,null,null,null,null,null,null,null,null,null,null,null,null,null,null,null,null,null,null,null,null,null,null,null,null,null,null,null,null,null,null,null,{"$f":"IF(MIN(IF(Notes<>\"\",IF(COUNTIF($AG$3:$AG240,Notes)=0,ROW(Notes))))=0,\"\",INDEX($Y:$Y,MIN(IF(Notes<>\"\",IF(COUNTIF($AG$3:$AG240,Notes)=0,ROW(Notes))))))","v":""}]
[null,null,null,null,null,null,null,null,null,null,null,null,null,null,null,null,null,null,null,null,null,null,null,null,null,null,null,null,null,null,null,null,{"$f":"IF(MIN(IF(Notes<>\"\",IF(COUNTIF($AG$3:$AG241,Notes)=0,ROW(Notes))))=0,\"\",INDEX($Y:$Y,MIN(IF(Notes<>\"\",IF(COUNTIF($AG$3:$AG241,Notes)=0,ROW(Notes))))))","v":""}]
[null,null,null,null,null,null,null,null,null,null,null,null,null,null,null,null,null,null,null,null,null,null,null,null,null,null,null,null,null,null,null,null,{"$f":"IF(MIN(IF(Notes<>\"\",IF(COUNTIF($AG$3:$AG242,Notes)=0,ROW(Notes))))=0,\"\",INDEX($Y:$Y,MIN(IF(Notes<>\"\",IF(COUNTIF($AG$3:$AG242,Notes)=0,ROW(Notes))))))","v":""}]
[null,null,null,null,null,null,null,null,null,null,null,null,null,null,null,null,null,null,null,null,null,null,null,null,null,null,null,null,null,null,null,null,{"$f":"IF(MIN(IF(Notes<>\"\",IF(COUNTIF($AG$3:$AG243,Notes)=0,ROW(Notes))))=0,\"\",INDEX($Y:$Y,MIN(IF(Notes<>\"\",IF(COUNTIF($AG$3:$AG243,Notes)=0,ROW(Notes))))))","v":""}]
[null,null,null,null,null,null,null,null,null,null,null,null,null,null,null,null,null,null,null,null,null,null,null,null,null,null,null,null,null,null,null,null,{"$f":"IF(MIN(IF(Notes<>\"\",IF(COUNTIF($AG$3:$AG244,Notes)=0,ROW(Notes))))=0,\"\",INDEX($Y:$Y,MIN(IF(Notes<>\"\",IF(COUNTIF($AG$3:$AG244,Notes)=0,ROW(Notes))))))","v":""}]
[null,null,null,null,null,null,null,null,null,null,null,null,null,null,null,null,null,null,null,null,null,null,null,null,null,null,null,null,null,null,null,null,{"$f":"IF(MIN(IF(Notes<>\"\",IF(COUNTIF($AG$3:$AG245,Notes)=0,ROW(Notes))))=0,\"\",INDEX($Y:$Y,MIN(IF(Notes<>\"\",IF(COUNTIF($AG$3:$AG245,Notes)=0,ROW(Notes))))))","v":""}]
[null,null,null,null,null,null,null,null,null,null,null,null,null,null,null,null,null,null,null,null,null,null,null,null,null,null,null,null,null,null,null,null,{"$f":"IF(MIN(IF(Notes<>\"\",IF(COUNTIF($AG$3:$AG246,Notes)=0,ROW(Notes))))=0,\"\",INDEX($Y:$Y,MIN(IF(Notes<>\"\",IF(COUNTIF($AG$3:$AG246,Notes)=0,ROW(Notes))))))","v":""}]
[null,null,null,null,null,null,null,null,null,null,null,null,null,null,null,null,null,null,null,null,null,null,null,null,null,null,null,null,null,null,null,null,{"$f":"IF(MIN(IF(Notes<>\"\",IF(COUNTIF($AG$3:$AG247,Notes)=0,ROW(Notes))))=0,\"\",INDEX($Y:$Y,MIN(IF(Notes<>\"\",IF(COUNTIF($AG$3:$AG247,Notes)=0,ROW(Notes))))))","v":""}]
[null,null,null,null,null,null,null,null,null,null,null,null,null,null,null,null,null,null,null,null,null,null,null,null,null,null,null,null,null,null,null,null,{"$f":"IF(MIN(IF(Notes<>\"\",IF(COUNTIF($AG$3:$AG248,Notes)=0,ROW(Notes))))=0,\"\",INDEX($Y:$Y,MIN(IF(Notes<>\"\",IF(COUNTIF($AG$3:$AG248,Notes)=0,ROW(Notes))))))","v":""}]
[null,null,null,null,null,null,null,null,null,null,null,null,null,null,null,null,null,null,null,null,null,null,null,null,null,null,null,null,null,null,null,null,{"$f":"IF(MIN(IF(Notes<>\"\",IF(COUNTIF($AG$3:$AG249,Notes)=0,ROW(Notes))))=0,\"\",INDEX($Y:$Y,MIN(IF(Notes<>\"\",IF(COUNTIF($AG$3:$AG249,Notes)=0,ROW(Notes))))))","v":""}]
[null,null,null,null,null,null,null,null,null,null,null,null,null,null,null,null,null,null,null,null,null,null,null,null,null,null,null,null,null,null,null,null,{"$f":"IF(MIN(IF(Notes<>\"\",IF(COUNTIF($AG$3:$AG250,Notes)=0,ROW(Notes))))=0,\"\",INDEX($Y:$Y,MIN(IF(Notes<>\"\",IF(COUNTIF($AG$3:$AG250,Notes)=0,ROW(Notes))))))","v":""}]
[null,null,null,null,null,null,null,null,null,null,null,null,null,null,null,null,null,null,null,null,null,null,null,null,null,null,null,null,null,null,null,null,{"$f":"IF(MIN(IF(Notes<>\"\",IF(COUNTIF($AG$3:$AG251,Notes)=0,ROW(Notes))))=0,\"\",INDEX($Y:$Y,MIN(IF(Notes<>\"\",IF(COUNTIF($AG$3:$AG251,Notes)=0,ROW(Notes))))))","v":""}]
[null,null,null,null,null,null,null,null,null,null,null,null,null,null,null,null,null,null,null,null,null,null,null,null,null,null,null,null,null,null,null,null,{"$f":"IF(MIN(IF(Notes<>\"\",IF(COUNTIF($AG$3:$AG252,Notes)=0,ROW(Notes))))=0,\"\",INDEX($Y:$Y,MIN(IF(Notes<>\"\",IF(COUNTIF($AG$3:$AG252,Notes)=0,ROW(Notes))))))","v":""}]
[null,null,null,null,null,null,null,null,null,null,null,null,null,null,null,null,null,null,null,null,null,null,null,null,null,null,null,null,null,null,null,null,{"$f":"IF(MIN(IF(Notes<>\"\",IF(COUNTIF($AG$3:$AG253,Notes)=0,ROW(Notes))))=0,\"\",INDEX($Y:$Y,MIN(IF(Notes<>\"\",IF(COUNTIF($AG$3:$AG253,Notes)=0,ROW(Notes))))))","v":""}]
[null,null,null,null,null,null,null,null,null,null,null,null,null,null,null,null,null,null,null,null,null,null,null,null,null,null,null,null,null,null,null,null,{"$f":"IF(MIN(IF(Notes<>\"\",IF(COUNTIF($AG$3:$AG254,Notes)=0,ROW(Notes))))=0,\"\",INDEX($Y:$Y,MIN(IF(Notes<>\"\",IF(COUNTIF($AG$3:$AG254,Notes)=0,ROW(Notes))))))","v":""}]
[null,null,null,null,null,null,null,null,null,null,null,null,null,null,null,null,null,null,null,null,null,null,null,null,null,null,null,null,null,null,null,null,{"$f":"IF(MIN(IF(Notes<>\"\",IF(COUNTIF($AG$3:$AG255,Notes)=0,ROW(Notes))))=0,\"\",INDEX($Y:$Y,MIN(IF(Notes<>\"\",IF(COUNTIF($AG$3:$AG255,Notes)=0,ROW(Notes))))))","v":""}]
[null,null,null,null,null,null,null,null,null,null,null,null,null,null,null,null,null,null,null,null,null,null,null,null,null,null,null,null,null,null,null,null,{"$f":"IF(MIN(IF(Notes<>\"\",IF(COUNTIF($AG$3:$AG256,Notes)=0,ROW(Notes))))=0,\"\",INDEX($Y:$Y,MIN(IF(Notes<>\"\",IF(COUNTIF($AG$3:$AG256,Notes)=0,ROW(Notes))))))","v":""}]
[null,null,null,null,null,null,null,null,null,null,null,null,null,null,null,null,null,null,null,null,null,null,null,null,null,null,null,null,null,null,null,null,{"$f":"IF(MIN(IF(Notes<>\"\",IF(COUNTIF($AG$3:$AG257,Notes)=0,ROW(Notes))))=0,\"\",INDEX($Y:$Y,MIN(IF(Notes<>\"\",IF(COUNTIF($AG$3:$AG257,Notes)=0,ROW(Notes))))))","v":""}]
[null,null,null,null,null,null,null,null,null,null,null,null,null,null,null,null,null,null,null,null,null,null,null,null,null,null,null,null,null,null,null,null,{"$f":"IF(MIN(IF(Notes<>\"\",IF(COUNTIF($AG$3:$AG258,Notes)=0,ROW(Notes))))=0,\"\",INDEX($Y:$Y,MIN(IF(Notes<>\"\",IF(COUNTIF($AG$3:$AG258,Notes)=0,ROW(Notes))))))","v":""}]
[null,null,null,null,null,null,null,null,null,null,null,null,null,null,null,null,null,null,null,null,null,null,null,null,null,null,null,null,null,null,null,null,{"$f":"IF(MIN(IF(Notes<>\"\",IF(COUNTIF($AG$3:$AG259,Notes)=0,ROW(Notes))))=0,\"\",INDEX($Y:$Y,MIN(IF(Notes<>\"\",IF(COUNTIF($AG$3:$AG259,Notes)=0,ROW(Notes))))))","v":""}]
[null,null,null,null,null,null,null,null,null,null,null,null,null,null,null,null,null,null,null,null,null,null,null,null,null,null,null,null,null,null,null,null,{"$f":"IF(MIN(IF(Notes<>\"\",IF(COUNTIF($AG$3:$AG260,Notes)=0,ROW(Notes))))=0,\"\",INDEX($Y:$Y,MIN(IF(Notes<>\"\",IF(COUNTIF($AG$3:$AG260,Notes)=0,ROW(Notes))))))","v":""}]
[null,null,null,null,null,null,null,null,null,null,null,null,null,null,null,null,null,null,null,null,null,null,null,null,null,null,null,null,null,null,null,null,{"$f":"IF(MIN(IF(Notes<>\"\",IF(COUNTIF($AG$3:$AG261,Notes)=0,ROW(Notes))))=0,\"\",INDEX($Y:$Y,MIN(IF(Notes<>\"\",IF(COUNTIF($AG$3:$AG261,Notes)=0,ROW(Notes))))))","v":""}]
[null,null,null,null,null,null,null,null,null,null,null,null,null,null,null,null,null,null,null,null,null,null,null,null,null,null,null,null,null,null,null,null,{"$f":"IF(MIN(IF(Notes<>\"\",IF(COUNTIF($AG$3:$AG262,Notes)=0,ROW(Notes))))=0,\"\",INDEX($Y:$Y,MIN(IF(Notes<>\"\",IF(COUNTIF($AG$3:$AG262,Notes)=0,ROW(Notes))))))","v":""}]
[null,null,null,null,null,null,null,null,null,null,null,null,null,null,null,null,null,null,null,null,null,null,null,null,null,null,null,null,null,null,null,null,{"$f":"IF(MIN(IF(Notes<>\"\",IF(COUNTIF($AG$3:$AG263,Notes)=0,ROW(Notes))))=0,\"\",INDEX($Y:$Y,MIN(IF(Notes<>\"\",IF(COUNTIF($AG$3:$AG263,Notes)=0,ROW(Notes))))))","v":""}]
[null,null,null,null,null,null,null,null,null,null,null,null,null,null,null,null,null,null,null,null,null,null,null,null,null,null,null,null,null,null,null,null,{"$f":"IF(MIN(IF(Notes<>\"\",IF(COUNTIF($AG$3:$AG264,Notes)=0,ROW(Notes))))=0,\"\",INDEX($Y:$Y,MIN(IF(Notes<>\"\",IF(COUNTIF($AG$3:$AG264,Notes)=0,ROW(Notes))))))","v":""}]
[null,null,null,null,null,null,null,null,null,null,null,null,null,null,null,null,null,null,null,null,null,null,null,null,null,null,null,null,null,null,null,null,{"$f":"IF(MIN(IF(Notes<>\"\",IF(COUNTIF($AG$3:$AG265,Notes)=0,ROW(Notes))))=0,\"\",INDEX($Y:$Y,MIN(IF(Notes<>\"\",IF(COUNTIF($AG$3:$AG265,Notes)=0,ROW(Notes))))))","v":""}]
[null,null,null,null,null,null,null,null,null,null,null,null,null,null,null,null,null,null,null,null,null,null,null,null,null,null,null,null,null,null,null,null,{"$f":"IF(MIN(IF(Notes<>\"\",IF(COUNTIF($AG$3:$AG266,Notes)=0,ROW(Notes))))=0,\"\",INDEX($Y:$Y,MIN(IF(Notes<>\"\",IF(COUNTIF($AG$3:$AG266,Notes)=0,ROW(Notes))))))","v":""}]
[null,null,null,null,null,null,null,null,null,null,null,null,null,null,null,null,null,null,null,null,null,null,null,null,null,null,null,null,null,null,null,null,{"$f":"IF(MIN(IF(Notes<>\"\",IF(COUNTIF($AG$3:$AG267,Notes)=0,ROW(Notes))))=0,\"\",INDEX($Y:$Y,MIN(IF(Notes<>\"\",IF(COUNTIF($AG$3:$AG267,Notes)=0,ROW(Notes))))))","v":""}]
[null,null,null,null,null,null,null,null,null,null,null,null,null,null,null,null,null,null,null,null,null,null,null,null,null,null,null,null,null,null,null,null,{"$f":"IF(MIN(IF(Notes<>\"\",IF(COUNTIF($AG$3:$AG268,Notes)=0,ROW(Notes))))=0,\"\",INDEX($Y:$Y,MIN(IF(Notes<>\"\",IF(COUNTIF($AG$3:$AG268,Notes)=0,ROW(Notes))))))","v":""}]
[null,null,null,null,null,null,null,null,null,null,null,null,null,null,null,null,null,null,null,null,null,null,null,null,null,null,null,null,null,null,null,null,{"$f":"IF(MIN(IF(Notes<>\"\",IF(COUNTIF($AG$3:$AG269,Notes)=0,ROW(Notes))))=0,\"\",INDEX($Y:$Y,MIN(IF(Notes<>\"\",IF(COUNTIF($AG$3:$AG269,Notes)=0,ROW(Notes))))))","v":""}]
[null,null,null,null,null,null,null,null,null,null,null,null,null,null,null,null,null,null,null,null,null,null,null,null,null,null,null,null,null,null,null,null,{"$f":"IF(MIN(IF(Notes<>\"\",IF(COUNTIF($AG$3:$AG270,Notes)=0,ROW(Notes))))=0,\"\",INDEX($Y:$Y,MIN(IF(Notes<>\"\",IF(COUNTIF($AG$3:$AG270,Notes)=0,ROW(Notes))))))","v":""}]
[null,null,null,null,null,null,null,null,null,null,null,null,null,null,null,null,null,null,null,null,null,null,null,null,null,null,null,null,null,null,null,null,{"$f":"IF(MIN(IF(Notes<>\"\",IF(COUNTIF($AG$3:$AG271,Notes)=0,ROW(Notes))))=0,\"\",INDEX($Y:$Y,MIN(IF(Notes<>\"\",IF(COUNTIF($AG$3:$AG271,Notes)=0,ROW(Notes))))))","v":""}]
[null,null,null,null,null,null,null,null,null,null,null,null,null,null,null,null,null,null,null,null,null,null,null,null,null,null,null,null,null,null,null,null,{"$f":"IF(MIN(IF(Notes<>\"\",IF(COUNTIF($AG$3:$AG272,Notes)=0,ROW(Notes))))=0,\"\",INDEX($Y:$Y,MIN(IF(Notes<>\"\",IF(COUNTIF($AG$3:$AG272,Notes)=0,ROW(Notes))))))","v":""}]
[null,null,null,null,null,null,null,null,null,null,null,null,null,null,null,null,null,null,null,null,null,null,null,null,null,null,null,null,null,null,null,null,{"$f":"IF(MIN(IF(Notes<>\"\",IF(COUNTIF($AG$3:$AG273,Notes)=0,ROW(Notes))))=0,\"\",INDEX($Y:$Y,MIN(IF(Notes<>\"\",IF(COUNTIF($AG$3:$AG273,Notes)=0,ROW(Notes))))))","v":""}]
[null,null,null,null,null,null,null,null,null,null,null,null,null,null,null,null,null,null,null,null,null,null,null,null,null,null,null,null,null,null,null,null,{"$f":"IF(MIN(IF(Notes<>\"\",IF(COUNTIF($AG$3:$AG274,Notes)=0,ROW(Notes))))=0,\"\",INDEX($Y:$Y,MIN(IF(Notes<>\"\",IF(COUNTIF($AG$3:$AG274,Notes)=0,ROW(Notes))))))","v":""}]
[null,null,null,null,null,null,null,null,null,null,null,null,null,null,null,null,null,null,null,null,null,null,null,null,null,null,null,null,null,null,null,null,{"$f":"IF(MIN(IF(Notes<>\"\",IF(COUNTIF($AG$3:$AG275,Notes)=0,ROW(Notes))))=0,\"\",INDEX($Y:$Y,MIN(IF(Notes<>\"\",IF(COUNTIF($AG$3:$AG275,Notes)=0,ROW(Notes))))))","v":""}]
[null,null,null,null,null,null,null,null,null,null,null,null,null,null,null,null,null,null,null,null,null,null,null,null,null,null,null,null,null,null,null,null,{"$f":"IF(MIN(IF(Notes<>\"\",IF(COUNTIF($AG$3:$AG276,Notes)=0,ROW(Notes))))=0,\"\",INDEX($Y:$Y,MIN(IF(Notes<>\"\",IF(COUNTIF($AG$3:$AG276,Notes)=0,ROW(Notes))))))","v":""}]
[null,null,null,null,null,null,null,null,null,null,null,null,null,null,null,null,null,null,null,null,null,null,null,null,null,null,null,null,null,null,null,null,{"$f":"IF(MIN(IF(Notes<>\"\",IF(COUNTIF($AG$3:$AG277,Notes)=0,ROW(Notes))))=0,\"\",INDEX($Y:$Y,MIN(IF(Notes<>\"\",IF(COUNTIF($AG$3:$AG277,Notes)=0,ROW(Notes))))))","v":""}]
[null,null,null,null,null,null,null,null,null,null,null,null,null,null,null,null,null,null,null,null,null,null,null,null,null,null,null,null,null,null,null,null,{"$f":"IF(MIN(IF(Notes<>\"\",IF(COUNTIF($AG$3:$AG278,Notes)=0,ROW(Notes))))=0,\"\",INDEX($Y:$Y,MIN(IF(Notes<>\"\",IF(COUNTIF($AG$3:$AG278,Notes)=0,ROW(Notes))))))","v":""}]
[null,null,null,null,null,null,null,null,null,null,null,null,null,null,null,null,null,null,null,null,null,null,null,null,null,null,null,null,null,null,null,null,{"$f":"IF(MIN(IF(Notes<>\"\",IF(COUNTIF($AG$3:$AG279,Notes)=0,ROW(Notes))))=0,\"\",INDEX($Y:$Y,MIN(IF(Notes<>\"\",IF(COUNTIF($AG$3:$AG279,Notes)=0,ROW(Notes))))))","v":""}]
[null,null,null,null,null,null,null,null,null,null,null,null,null,null,null,null,null,null,null,null,null,null,null,null,null,null,null,null,null,null,null,null,{"$f":"IF(MIN(IF(Notes<>\"\",IF(COUNTIF($AG$3:$AG280,Notes)=0,ROW(Notes))))=0,\"\",INDEX($Y:$Y,MIN(IF(Notes<>\"\",IF(COUNTIF($AG$3:$AG280,Notes)=0,ROW(Notes))))))","v":""}]
[null,null,null,null,null,null,null,null,null,null,null,null,null,null,null,null,null,null,null,null,null,null,null,null,null,null,null,null,null,null,null,null,{"$f":"IF(MIN(IF(Notes<>\"\",IF(COUNTIF($AG$3:$AG281,Notes)=0,ROW(Notes))))=0,\"\",INDEX($Y:$Y,MIN(IF(Notes<>\"\",IF(COUNTIF($AG$3:$AG281,Notes)=0,ROW(Notes))))))","v":""}]
[null,null,null,null,null,null,null,null,null,null,null,null,null,null,null,null,null,null,null,null,null,null,null,null,null,null,null,null,null,null,null,null,{"$f":"IF(MIN(IF(Notes<>\"\",IF(COUNTIF($AG$3:$AG282,Notes)=0,ROW(Notes))))=0,\"\",INDEX($Y:$Y,MIN(IF(Notes<>\"\",IF(COUNTIF($AG$3:$AG282,Notes)=0,ROW(Notes))))))","v":""}]
[null,null,null,null,null,null,null,null,null,null,null,null,null,null,null,null,null,null,null,null,null,null,null,null,null,null,null,null,null,null,null,null,{"$f":"IF(MIN(IF(Notes<>\"\",IF(COUNTIF($AG$3:$AG283,Notes)=0,ROW(Notes))))=0,\"\",INDEX($Y:$Y,MIN(IF(Notes<>\"\",IF(COUNTIF($AG$3:$AG283,Notes)=0,ROW(Notes))))))","v":""}]
[null,null,null,null,null,null,null,null,null,null,null,null,null,null,null,null,null,null,null,null,null,null,null,null,null,null,null,null,null,null,null,null,{"$f":"IF(MIN(IF(Notes<>\"\",IF(COUNTIF($AG$3:$AG284,Notes)=0,ROW(Notes))))=0,\"\",INDEX($Y:$Y,MIN(IF(Notes<>\"\",IF(COUNTIF($AG$3:$AG284,Notes)=0,ROW(Notes))))))","v":""}]
[null,null,null,null,null,null,null,null,null,null,null,null,null,null,null,null,null,null,null,null,null,null,null,null,null,null,null,null,null,null,null,null,{"$f":"IF(MIN(IF(Notes<>\"\",IF(COUNTIF($AG$3:$AG285,Notes)=0,ROW(Notes))))=0,\"\",INDEX($Y:$Y,MIN(IF(Notes<>\"\",IF(COUNTIF($AG$3:$AG285,Notes)=0,ROW(Notes))))))","v":""}]
[null,null,null,null,null,null,null,null,null,null,null,null,null,null,null,null,null,null,null,null,null,null,null,null,null,null,null,null,null,null,null,null,{"$f":"IF(MIN(IF(Notes<>\"\",IF(COUNTIF($AG$3:$AG286,Notes)=0,ROW(Notes))))=0,\"\",INDEX($Y:$Y,MIN(IF(Notes<>\"\",IF(COUNTIF($AG$3:$AG286,Notes)=0,ROW(Notes))))))","v":""}]
[null,null,null,null,null,null,null,null,null,null,null,null,null,null,null,null,null,null,null,null,null,null,null,null,null,null,null,null,null,null,null,null,{"$f":"IF(MIN(IF(Notes<>\"\",IF(COUNTIF($AG$3:$AG287,Notes)=0,ROW(Notes))))=0,\"\",INDEX($Y:$Y,MIN(IF(Notes<>\"\",IF(COUNTIF($AG$3:$AG287,Notes)=0,ROW(Notes))))))","v":""}]
[null,null,null,null,null,null,null,null,null,null,null,null,null,null,null,null,null,null,null,null,null,null,null,null,null,null,null,null,null,null,null,null,{"$f":"IF(MIN(IF(Notes<>\"\",IF(COUNTIF($AG$3:$AG288,Notes)=0,ROW(Notes))))=0,\"\",INDEX($Y:$Y,MIN(IF(Notes<>\"\",IF(COUNTIF($AG$3:$AG288,Notes)=0,ROW(Notes))))))","v":""}]
[null,null,null,null,null,null,null,null,null,null,null,null,null,null,null,null,null,null,null,null,null,null,null,null,null,null,null,null,null,null,null,null,{"$f":"IF(MIN(IF(Notes<>\"\",IF(COUNTIF($AG$3:$AG289,Notes)=0,ROW(Notes))))=0,\"\",INDEX($Y:$Y,MIN(IF(Notes<>\"\",IF(COUNTIF($AG$3:$AG289,Notes)=0,ROW(Notes))))))","v":""}]
[null,null,null,null,null,null,null,null,null,null,null,null,null,null,null,null,null,null,null,null,null,null,null,null,null,null,null,null,null,null,null,null,{"$f":"IF(MIN(IF(Notes<>\"\",IF(COUNTIF($AG$3:$AG290,Notes)=0,ROW(Notes))))=0,\"\",INDEX($Y:$Y,MIN(IF(Notes<>\"\",IF(COUNTIF($AG$3:$AG290,Notes)=0,ROW(Notes))))))","v":""}]
[null,null,null,null,null,null,null,null,null,null,null,null,null,null,null,null,null,null,null,null,null,null,null,null,null,null,null,null,null,null,null,null,{"$f":"IF(MIN(IF(Notes<>\"\",IF(COUNTIF($AG$3:$AG291,Notes)=0,ROW(Notes))))=0,\"\",INDEX($Y:$Y,MIN(IF(Notes<>\"\",IF(COUNTIF($AG$3:$AG291,Notes)=0,ROW(Notes))))))","v":""}]

{"sheet":"ورقة2","index":1,"n_rows":38,"n_cols":15,"rows_kept":38,"cut":false,"hidden":false,"merged":[[37,7,37,10],[16,6,16,11],[17,6,17,11],[13,7,13,11],[33,7,33,11],[32,7,32,11],[36,7,36,10],[34,7,34,11],[14,7,14,11],[21,0,21,11],[22,2,22,7],[23,0,23,11],[22,0,22,1],[34,0,34,4],[35,1,35,3],[35,5,35,6],[24,0,26,0],[24,5,24,6],[25,1,25,2],[25,3,25,4],[25,5,25,6],[24,1,24,2],[24,3,24,4],[2,2,2,7],[1,0,1,11],[15,5,15,6],[15,1,15,3],[3,0,3,11],[4,1,4,2],[5,1,5,2],[4,3,4,4],[5,3,5,4],[4,5,4,6],[5,5,5,6],[2,0,2,1],[4,0,6,0],[14,0,14,4]]}
[null,null,null,null,null,null,null,null,null,null,null,null,1,"من","إلى"]
["إخطار بنتيجة الفصل الدراسي الأول  ( مرحلة التعليم الأساسي  )",null,null,null,null,null,null,null,null,null,null,null,null,{"$f":"MIN(ورقة1!A:A)","v":1},{"$f":"MAX(ورقة1!A:A)","v":38}]
["          اسم الطالب :  ",null,{"$f":"VLOOKUP($M$1,ورقة1!$A$4:$AB$993,2,1)","v":"احمد سالم احمد محمد سقاف"}]
["الصــــــــف  :      (  الاول  )       شعبة (    )          العام الدراسي     2018  /   2019 م"]
["المواد الدراسية","المحصلة الأولى",null,"امتحان الفصل الأول",null,"المجمــــــــــــــوع",null,"ملاحظة رائد الفصل :........................",null,null,null,null,null,"أصغر رقم",{"$f":"MIN(ورقة1!C:C)","v":1}]
[null,0.2,null,0.3,null,0.5,null,null,null,null,null,".............................................................",null,"أكبر رقم",{"$f":"MAX(ورقة1!C:C)","v":38}]
[null,"رقما","كتــابـــة","رقما","كتـابـــة","رقما","كتــابـــة",null,null,null,null,"...................................................",{"$f":"NN(B8)","v":""}]
["القـران الكـريــــم",{"$f":"VLOOKUP($M$1,ورقة1!$A$4:$AB$993,4,1)","v":18},{"$f":"IFERROR(IF(B8=\"\",\"\",IF(B8=0,\"صفر\",n2t(B8))),\"\")","v":"ثمان عشرة درجةً"},{"$f":"VLOOKUP($M$1,ورقة1!$A$4:$AB$993,5,1)","v":30},{"$f":"IFERROR(IF(D8=\"\",\"\",IF(D8=0,\"صفر\",n2t(D8))),\"\")","v":" ثلاثونَ درجةً"},{"$f":"VLOOKUP($M$1,ورقة1!$A$4:$AB$993,6,1)","v":48},{"$f":"IFERROR(IF(F8=\"\",\"\",IF(F8=0,\"صفر\",n2t(F8))),\"\")","v":"ثمان و أربعونَ درجةً"},"التوقيع  :........................................"]
["التربية الإسلامية",{"$f":"VLOOKUP($M$1,ورقة1!$A$4:$AB$993,7,1)","v":18},{"$f":"IFERROR(IF(B9=\"\",\"\",IF(B9=0,\"صفر\",n2t(B9))),\"\")","v":"ثمان عشرة درجةً"},{"$f":"VLOOKUP($M$1,ورقة1!$A$4:$AB$993,8,1)","v":30},{"$f":"IFERROR(IF(D9=\"\",\"\",IF(D9=0,\"صفر\",n2t(D9))),\"\")","v":" ثلاثونَ درجةً"},{"$f":"VLOOKUP($M$1,ورقة1!$A$4:$AB$993,9,1)","v":48},{"$f":"IFERROR(IF(F9=\"\",\"\",IF(F9=0,\"صفر\",n2t(F9))),\"\")","v":"ثمان و أربعونَ درجةً"},"التاريخ : ........................................"]
["اللغـة العـربيــــة",{"$f":"VLOOKUP($M$1,ورقة1!$A$4:$AB$993,10,1)","v":20},{"$f":"IFERROR(IF(B10=\"\",\"\",IF(B10=0,\"صفر\",n2t(B10))),\"\")","v":" عشرونَ درجةً"},{"$f":"VLOOKUP($M$1,ورقة1!$A$4:$AB$993,11,1)","v":24},{"$f":"IFERROR(IF(D10=\"\",\"\",IF(D10=0,\"صفر\",n2t(D10))),\"\")","v":"أربع و عشرونَ درجةً"},{"$f":"VLOOKUP($M$1,ورقة1!$A$4:$AB$993,12,1)","v":44},{"$f":"IFERROR(IF(F10=\"\",\"\",IF(F10=0,\"صفر\",n2t(F10))),\"\")","v":"أربع و أربعونَ درجةً"},"ملاحظات مدير المدرسة : .................",null,null,null,null,"اضغط زر أمر طباعة "]
["اللغة الإنجليزية",{"$f":"VLOOKUP($M$1,ورقة1!$A$4:$AB$993,13,1)","v":0},{"$f":"IFERROR(IF(B11=\"\",\"\",IF(B11=0,\"صفر\",n2t(B11))),\"\")","v":"صفر"},{"$f":"VLOOKUP($M$1,ورقة1!$A$4:$AB$993,14,1)","v":0},{"$f":"IFERROR(IF(D11=\"\",\"\",IF(D11=0,\"صفر\",n2t(D11))),\"\")","v":"صفر"},{"$f":"VLOOKUP($M$1,ورقة1!$A$4:$AB$993,15,1)","v":0},{"$f":"IFERROR(IF(F11=\"\",\"\",IF(F11=0,\"صفر\",n2t(F11))),\"\")","v":"صفر"},null,null,null,null,"...................................................."]
["الـريـــاضـيــــات",{"$f":"VLOOKUP($M$1,ورقة1!$A$4:$AB$993,16,1)","v":20},{"$f":"IFERROR(IF(B12=\"\",\"\",IF(B12=0,\"صفر\",n2t(B12))),\"\")","v":" عشرونَ درجةً"},{"$f":"VLOOKUP($M$1,ورقة1!$A$4:$AB$993,17,1)","v":16},{"$f":"IFERROR(IF(D12=\"\",\"\",IF(D12=0,\"صفر\",n2t(D12))),\"\")","v":"ست عشرة درجةً"},{"$f":"VLOOKUP($M$1,ورقة1!$A$4:$AB$993,18,1)","v":36},{"$f":"IFERROR(IF(F12=\"\",\"\",IF(F12=0,\"صفر\",n2t(F12))),\"\")","v":"ست و ثلاثونَ درجةً"},"التوقيع : ........................................"]
["العلـوم الصحيــة",{"$f":"VLOOKUP($M$1,ورقة1!$A$4:$AB$993,19,1)","v":12},{"$f":"IFERROR(IF(B13=\"\",\"\",IF(B13=0,\"صفر\",n2t(B13))),\"\")","v":"اثنتا عشرة درجةً"},{"$f":"VLOOKUP($M$1,ورقة1!$A$4:$AB$993,20,1)","v":30},{"$f":"IFERROR(IF(D13=\"\",\"\",IF(D13=0,\"صفر\",n2t(D13))),\"\")","v":" ثلاثونَ درجةً"},{"$f":"VLOOKUP($M$1,ورقة1!$A$4:$AB$993,21,1)","v":42},{"$f":"IFERROR(IF(F13=\"\",\"\",IF(F13=0,\"صفر\",n2t(F13))),\"\")","v":"اثنتانِ و أربعونَ درجةً"}]
["الاجتمــاعـيـــات",{"$f":"VLOOKUP($M$1,ورقة1!$A$4:$AB$993,22,1)","v":0},{"$f":"IFERROR(IF(B14=\"\",\"\",IF(B14=0,\"صفر\",n2t(B14))),\"\")","v":"صفر"},{"$f":"VLOOKUP($M$1,ورقة1!$A$4:$AB$993,23,1)","v":0},{"$f":"IFERROR(IF(D14=\"\",\"\",IF(D14=0,\"صفر\",n2t(D14))),\"\")","v":"صفر"},{"$f":"VLOOKUP($M$1,ورقة1!$A$4:$AB$993,24,1)","v":0},{"$f":"IFERROR(IF(F14=\"\",\"\",IF(F14=0,\"صفر\",n2t(F14))),\"\")","v":"صفر"}]
["المجـمـــــــــــــــــــــــــــــــــــــــــــــــــوع الكلـــــي",null,null,null,null,{"$f":"VLOOKUP($M$1,ورقة1!$A$4:$AB$993,25,1)","v":218},{"$f":"IFERROR(IF(F15=\"\",\"\",IF(F15=0,\"صفر\",n2t(F15))),\"\")","v":"مائتانِ و ثمان عشرة درجةً"},"التاريخ: 27/1/2019م"]
["الترتيب:",{"$f":"VLOOKUP($M$1,ورقة1!$A$4:$AB$993,27,1)","v":"التّاسع عشر"},null,null,"التقدير",{"$f":"VLOOKUP($M$1,ورقة1!$A$4:$AB$993,28,1)","v":"جيد"}]
[null,null,null,null,null,null,"                 إدارة مدرسة الصديق"]
[null,null,null,null,null,null,"الختم:"]
[]
[]
[]
["إخطار بنتيجة الفصل الدراسي الأول  ( مرحلة التعليم الأساسي  )"]
["          اسم الطالب :  ",null,{"$f":"VLOOKUP($M$1+1,ورقة1!$A$4:$AB$993,2,1)","v":"احمد سالم عبدالله عبدالسلام"}]
["الصــــــــف  :      (  الاول  )       شعبة (     )          العام الدراسي     2018  /   2019 م"]
["المواد الدراسية","المحصلة الأولى",null,"امتحان الفصل الأول",null,"المجمــــــــوع",null,"ملاحظة رائد الفصل :........................"]
[null,0.2,null,0.3,null,0.5,null,null,null,null,null,"............................................................."]
[null,"رقمـا","كتــابـــة","رقمــا","كتـابـــة","رقمــا","كتــابـــة",null,null,null,null,"..................................................."]
["القـران الكـريــــم",{"$f":"VLOOKUP($M$1+1,ورقة1!$A$4:$AB$993,4,1)","v":18},{"$f":"IFERROR(IF(B28=\"\",\"\",IF(B28=0,\"صفر\",n2t(B28))),\"\")","v":"ثمان عشرة درجةً"},{"$f":"VLOOKUP($M$1+1,ورقة1!$A$4:$AB$993,5,1)","v":24},{"$f":"IFERROR(IF(D28=\"\",\"\",IF(D28=0,\"صفر\",n2t(D28))),\"\")","v":"أربع و عشرونَ درجةً"},{"$f":"VLOOKUP($M$1+1,ورقة1!$A$4:$AB$993,6,1)","v":42},{"$f":"IFERROR(IF(F28=\"\",\"\",IF(F28=0,\"صفر\",n2t(F28))),\"\")","v":"اثنتانِ و أربعونَ درجةً"},"التوقيع  :........................................"]
["التربية الإسلامية",{"$f":"VLOOKUP($M$1+1,ورقة1!$A$4:$AB$993,7,1)","v":18},{"$f":"IFERROR(IF(B29=\"\",\"\",IF(B29=0,\"صفر\",n2t(B29))),\"\")","v":"ثمان عشرة درجةً"},{"$f":"VLOOKUP($M$1+1,ورقة1!$A$4:$AB$993,8,1)","v":20},{"$f":"IFERROR(IF(D29=\"\",\"\",IF(D29=0,\"صفر\",n2t(D29))),\"\")","v":" عشرونَ درجةً"},{"$f":"VLOOKUP($M$1+1,ورقة1!$A$4:$AB$993,9,1)","v":38},{"$f":"IFERROR(IF(F29=\"\",\"\",IF(F29=0,\"صفر\",n2t(F29))),\"\")","v":"ثمان و ثلاثونَ درجةً"},"التاريخ : ........................................"]
["اللغـة العـربيــــة",{"$f":"VLOOKUP($M$1+1,ورقة1!$A$4:$AB$993,10,1)","v":6},{"$f":"IFERROR(IF(B30=\"\",\"\",IF(B30=0,\"صفر\",n2t(B30))),\"\")","v":"ست درجاتٍ"},{"$f":"VLOOKUP($M$1+1,ورقة1!$A$4:$AB$993,11,1)","v":13},{"$f":"IFERROR(IF(D30=\"\",\"\",IF(D30=0,\"صفر\",n2t(D30))),\"\")","v":"ثلاث عشرة درجةً"},{"$f":"VLOOKUP($M$1+1,ورقة1!$A$4:$AB$993,12,1)","v":19},{"$f":"IFERROR(IF(F30=\"\",\"\",IF(F30=0,\"صفر\",n2t(F30))),\"\")","v":"تسع عشرة درجةً"},"ملاحظات مدير المدرسة : ................."]
["اللغة الإنجليزية",{"$f":"VLOOKUP($M$1+1,ورقة1!$A$4:$AB$993,13,1)","v":0},{"$f":"IFERROR(IF(B31=\"\",\"\",IF(B31=0,\"صفر\",n2t(B31))),\"\")","v":"صفر"},{"$f":"VLOOKUP($M$1+1,ورقة1!$A$4:$AB$993,14,1)","v":0},{"$f":"IFERROR(IF(D31=\"\",\"\",IF(D31=0,\"صفر\",n2t(D31))),\"\")","v":"صفر"},{"$f":"VLOOKUP($M$1+1,ورقة1!$A$4:$AB$993,15,1)","v":0},{"$f":"IFERROR(IF(F31=\"\",\"\",IF(F31=0,\"صفر\",n2t(F31))),\"\")","v":"صفر"},null,null,null,null,"...................................................."]
["الـريـــاضـيــــات",{"$f":"VLOOKUP($M$1+1,ورقة1!$A$4:$AB$993,16,1)","v":12},{"$f":"IFERROR(IF(B32=\"\",\"\",IF(B32=0,\"صفر\",n2t(B32))),\"\")","v":"اثنتا عشرة درجةً"},{"$f":"VLOOKUP($M$1+1,ورقة1!$A$4:$AB$993,17,1)","v":5},{"$f":"IFERROR(IF(D32=\"\",\"\",IF(D32=0,\"صفر\",n2t(D32))),\"\")","v":"خمس درجاتٍ"},{"$f":"VLOOKUP($M$1+1,ورقة1!$A$4:$AB$993,18,1)","v":17},{"$f":"IFERROR(IF(F32=\"\",\"\",IF(F32=0,\"صفر\",n2t(F32))),\"\")","v":"سبع عشرة درجةً"},"التوقيع : ........................................"]
["العلـوم الصحيــة",{"$f":"VLOOKUP($M$1+1,ورقة1!$A$4:$AB$993,19,1)","v":16},{"$f":"IFERROR(IF(B33=\"\",\"\",IF(B33=0,\"صفر\",n2t(B33))),\"\")","v":"ست عشرة درجةً"},{"$f":"VLOOKUP($M$1+1,ورقة1!$A$4:$AB$993,20,1)","v":25},{"$f":"IFERROR(IF(D33=\"\",\"\",IF(D33=0,\"صفر\",n2t(D33))),\"\")","v":"خمس و عشرونَ درجةً"},{"$f":"VLOOKUP($M$1+1,ورقة1!$A$4:$AB$993,21,1)","v":41},{"$f":"IFERROR(IF(F33=\"\",\"\",IF(F33=0,\"صفر\",n2t(F33))),\"\")","v":"إحدى و أربعونَ درجةً"}]
["الاجتمــاعـيـــات",{"$f":"VLOOKUP($M$1+1,ورقة1!$A$4:$AB$993,22,1)","v":0},{"$f":"IFERROR(IF(B34=\"\",\"\",IF(B34=0,\"صفر\",n2t(B34))),\"\")","v":"صفر"},{"$f":"VLOOKUP($M$1+1,ورقة1!$A$4:$AB$993,23,1)","v":0},{"$f":"IFERROR(IF(D34=\"\",\"\",IF(D34=0,\"صفر\",n2t(D34))),\"\")","v":"صفر"},{"$f":"VLOOKUP($M$1+1,ورقة1!$A$4:$AB$993,24,1)","v":0},{"$f":"IFERROR(IF(F34=\"\",\"\",IF(F34=0,\"صفر\",n2t(F34))),\"\")","v":"صفر"},"التاريخ: 27/1/2019م"]
["المجـمـــــــــــــــــــــــــــــــــــــــــــــــــوع الكلـــــي",null,null,null,null,{"$f":"VLOOKUP($M$1+11,ورقة1!$A$4:$AB$993,25,1)","v":231},{"$f":"S(F35)","v":"مئتان والحادي وثلاثون"}]
["الترتيب:",{"$f":"VLOOKUP($M$1+1,ورقة1!$A$4:$AB$993,27,1)","v":"الحادي والثّلاثون"},null,null,"التقدير",{"$f":"VLOOKUP($M$1+1,ورقة1!$A$4:$AB$993,28,1)","v":"ضعيف"}]
[null,null,null,null,null,null,null,"إدارة مدرسة الصديق"]
[null,null,null,null,null,null,null,"        الختم:"]